Cogmind - Beta 16 @@@ ROGUE MODE // 2025.10.29 @ 13:50:47 // Winter2019/RPGLIKE Player: Gallgagger Result: Destroyed by Striker with Plasma Lance Performance ------------- Evolutions (9) 4500 Regions Visited (29) 5800 Robots Destroyed (1043) 5215 Value Destroyed (58562) 58562 Prototype IDs (89) 1780 Alien Tech Used (3) 600 Bonus (38895) 38895 TOTAL SCORE: 115352 Bonus ------- Triggered High Security 2500 Triggered Max Security 2000 High Alert Combat Kills 26147 Follower Combat Kills 1234 Destroyed Unchained 1000 Network Hubs Disabled 800 Aligned with FarCom 300 Met Data Miner 300 MAIN.C Attacked Warlord 500 Warlord Defense Kills 1486 Built Enhanced Grunts 300 Met R17 at Cetus 500 Met R17 at Research 2000 Scanned by Researcher 500 Friendly Fire -672 Cogmind --------- Core Integrity 0/1250 Matter 300/300 Energy 180/200 System Corruption 7% Temperature Cool (0) Movement Flying (26) Location -1/Command Parts ------- > --- POWER (2) -------- Micro Fission Core Micro Fission Core > --- PROPULSION (5) --- Cooled Field Propulsion Drive (fused) Cooled Impulse Thruster Cooled Impulse Thruster Improved Q-thruster Improved Q-thruster > --- UTILITY (13) ----- Advanced Melee Analysis Suite Experimental Melee Analysis Suite Experimental Melee Analysis Suite Experimental Melee Analysis Suite Experimental Core Analyzer Armor Integrity Analyzer Improved Armor Integrity Analyzer Microactuators (fused) Nanoactuators Advanced Actuator Array Improved Force Booster Advanced Reaction Control System > --- WEAPON (5) ------- Longsword +1 DM-GVY's Chainsaw DM-GVY's Chainsaw Sigix Broadsword > --- INVENTORY (5) ---- Protomatter-64 Protomatter-36 Gravity Neutralizer 01-MTF's Autohacker Experimental Plasma Cutter Peak State ------------ > --- POWER ------------ Micro Fission Core Micro Fission Core > --- PROPULSION ------- Cooled Field Propulsion Drive Cooled Impulse Thruster Cooled Impulse Thruster Improved Q-thruster Improved Q-thruster > --- UTILITY ---------- Advanced Melee Analysis Suite Experimental Melee Analysis Suite Experimental Melee Analysis Suite Experimental Melee Analysis Suite Advanced Target Analyzer Experimental Core Analyzer Armor Integrity Analyzer Nanoactuators Advanced Actuator Array Improved Force Booster Advanced Reaction Control System Light Regenerative Plating Experimental EM Disruption Field > --- WEAPON ----------- Longsword +1 DM-GVY's Chainsaw DM-GVY's Chainsaw Sigix Broadsword > --- INVENTORY -------- Protomatter Gravity Neutralizer 01-MTF's Autohacker Experimental Plasma Cutter [Rating: 207] Favorites ----------- Power Micro Nuclear Core Engine Light Ion Engine Power Core Micro Nuclear Core Reactor Cold Fusion Reactor Propulsion Improved Cesium-ion Thruster Wheel Compact Wheel Flight Unit Improved Cesium-ion Thruster Utility Advanced Melee Analysis Suite Device Microactuators Processor Advanced Melee Analysis Suite Hackware Hacking Suite Protection Light Regenerative Plating Weapon Longsword +1 Energy Gun Wave Gun Energy Cannon Compact Ion Cannon Ballistic Gun Gauss Rifle Special Weapon Experimental Plasma Cutter Impact Weapon Hammer Slashing Weapon Longsword +1 Piercing Weapon Enhanced Force Lance Build | -11 -10 -10 -10 -9 -8 -8 -8 -8 -6 -6 -6 -6 -5 -5 -5 -5 -5 -5 -4 -4 -4 -4 -3 -3 -3 -2 -2 -1 -1 ------- Run | Yrd Mat Min Exi Min Mat Sto Rec Scr Fac Low Low Dat Pro Fac Ext Cet Arc Hub Fac Upp Upp War Pro Res Tes Res Qua Acc Com Slots Evolved 21 | 3 2 . 3 . 5 . . 1 2 . . . . 1 . . . . 1 . . . . 1 . 1 1 . . Power 1 | 1 . . . . . . . . . . . . . . . . . . . . . . . . . . . . . Propulsion 4 | 1 1 . 1 . 1 . . . . . . . . . . . . . . . . . . . . . . . . Utility 12 | 1 1 . 1 . 4 . . . 2 . . . . 1 . . . . 1 . . . . . . 1 . . . Weapon 4 | . . . 1 . . . . 1 . . . . . . . . . . . . . . . 1 . . 1 . . Parts Attached 139 | 8 9 . 12 . 11 6 3 4 23 . . . 2 7 . 1 . 7 2 2 1 4 2 9 3 7 8 2 6 Power 18 | 2 2 . 2 . 1 4 . . 4 . . . . . . . . 1 1 . . . . . . 1 . . . Engine 6 | 2 2 . . . . 2 . . . . . . . . . . . . . . . . . . . . . . . Core 10 | . . . 2 . 1 1 . . 4 . . . . . . . . 1 1 . . . . . . . . . . Reactor 2 | . . . . . . 1 . . . . . . . . . . . . . . . . . . . 1 . . . Propulsion 29 | 2 3 . 2 . 5 1 . . 6 . . . . . . . . . . . . 2 . 2 1 1 4 . . Treads . | . . . . . . . . . . . . . . . . . . . . . . . . . . . . . . Leg . | . . . . . . . . . . . . . . . . . . . . . . . . . . . . . . Wheel 2 | 2 . . . . . . . . . . . . . . . . . . . . . . . . . . . . . Hover . | . . . . . . . . . . . . . . . . . . . . . . . . . . . . . . Flight 27 | . 3 . 2 . 5 1 . . 6 . . . . . . . . . . . . 2 . 2 1 1 4 . . Utility 67 | 2 2 . 4 . 4 1 2 . 11 . . . . 7 . 1 . 5 1 1 1 2 2 4 2 5 2 2 6 Device 33 | 2 . . . . 1 . 1 . 5 . . . . 6 . . . 3 . 1 . 1 2 3 2 1 2 . 3 Storage . | . . . . . . . . . . . . . . . . . . . . . . . . . . . . . . Processor 27 | . . . 4 . 1 . . . 6 . . . . 1 . . . 2 1 . 1 1 . 1 . 4 . 2 3 Hackware 1 | . . . . . 1 . . . . . . . . . . . . . . . . . . . . . . . . Protection 6 | . 2 . . . 1 1 1 . . . . . . . . 1 . . . . . . . . . . . . . Artifact . | . . . . . . . . . . . . . . . . . . . . . . . . . . . . . . Weapon 25 | 2 2 . 4 . 1 . 1 4 2 . . . 2 . . . . 1 . 1 . . . 3 . . 2 . . Energy Gun 8 | 2 1 . . . . . 1 1 1 . . . 2 . . . . . . . . . . . . . . . . Energy Cannon 2 | . . . 1 . . . . . 1 . . . . . . . . . . . . . . . . . . . . Ballistic Gun 3 | . . . 2 . 1 . . . . . . . . . . . . . . . . . . . . . . . . Ballistic Cannon . | . . . . . . . . . . . . . . . . . . . . . . . . . . . . . . Launcher . | . . . . . . . . . . . . . . . . . . . . . . . . . . . . . . Special Weapon 3 | . . . . . . . . 2 . . . . . . . . . . . 1 . . . . . . . . . Impact Weapon 1 | . 1 . . . . . . . . . . . . . . . . . . . . . . . . . . . . Slashing Weapon 7 | . . . 1 . . . . 1 . . . . . . . . . 1 . . . . . 2 . . 2 . . Piercing Weapon 1 | . . . . . . . . . . . . . . . . . . . . . . . . 1 . . . . . Special Melee Weapon . | . . . . . . . . . . . . . . . . . . . . . . . . . . . . . . Unidentified Prototypes 44 | . . . . . 1 4 3 2 6 . . . . 1 . 1 . 4 . 1 . 3 1 4 3 2 5 2 1 Parts Lost 9 | . 1 . 2 . . 1 . 1 4 . . . . . . . . . . . . . . . . . . . . Power 3 | . 1 . . . . 1 . . 1 . . . . . . . . . . . . . . . . . . . . Propulsion 1 | . . . . . . . . . 1 . . . . . . . . . . . . . . . . . . . . Utility 4 | . . . 2 . . . . 1 1 . . . . . . . . . . . . . . . . . . . . Weapon 1 | . . . . . . . . . 1 . . . . . . . . . . . . . . . . . . . . Highest Loss Streak 1 | . 1 . 1 . . 1 . 1 1 . . . . . . . . . . . . . . . . . . . . To Critical Strikes 1 | . . . . . . . . 1 . . . . . . . . . . . . . . . . . . . . . Average Backups 1 | . . 1 . . . . 1 2 2 2 3 3 3 3 3 3 3 1 1 1 1 1 1 2 2 2 2 3 3 Power . | . . . . . . . . . . . . . . . . . . . . . . . . . . . . . . Propulsion . | . . . . . . . . . . . . . . . . . . . . . . . . . . . . . . Utility . | . . . . . . . 1 1 . . 1 1 1 1 1 1 1 . . . . . . 1 1 1 1 1 1 Weapon . | . . . . . . . . . . . . . . . . . . . . . . . . . . . . . . Tool/Special . | . . . . . . . . . . . . . . . . . . . . . . . . . . . . . . Unused Backups 13 | . . . 4 . . . . . 2 . . . . 1 . . . . 1 . . . 5 . . . . . . Power 1 | . . . . . . . . . . . . . . . . . . . . . . . 1 . . . . . . Propulsion 5 | . . . 2 . . . . . . . . . . . . . . . 1 . . . 2 . . . . . . Utility 3 | . . . . . . . . . 2 . . . . 1 . . . . . . . . . . . . . . . Weapon 4 | . . . 2 . . . . . . . . . . . . . . . . . . . 2 . . . . . . Tool/Special . | . . . . . . . . . . . . . . . . . . . . . . . . . . . . . . Average Slot Usage (%) 96 | . 92 100 72 100 97 99 100 99 96 100 100 100 100 99 100 100 100 98 98 99 100 99 100 99 100 99 96 96 95 Engine 2 | . 26 22 3 . . 1 . . . . . . . . . . . . . . . . . . . . . . . Core 8 | . . . 13 16 12 7 5 5 6 10 10 10 10 9 9 9 9 9 9 9 9 8 9 8 8 8 8 8 8 Wheel 1 | . 14 . . . . . . . . . . . . . . . . . . . . . . . . . . . . Flight 22 | . 12 33 12 33 30 29 29 28 26 25 25 25 25 23 23 23 23 23 22 22 22 22 22 21 21 20 20 20 19 Device 17 | . 18 11 8 8 9 11 11 10 11 20 20 20 20 21 23 23 23 22 22 26 23 21 22 21 21 20 19 20 19 Processor 21 | . . . 17 25 19 23 23 22 24 25 25 25 25 23 23 23 23 23 23 22 25 27 27 26 26 28 28 28 27 Protection 5 | . 6 22 2 . 5 5 9 11 7 5 5 5 5 4 4 4 4 4 4 4 4 3 4 4 4 3 4 4 3 Energy Gun 1 | . 2 . . . . . 3 4 1 . . . 1 4 4 4 4 . . . . . . . . . . . . Special Weapon 1 | . . . . . . . . . . . . . . . . . . 3 4 4 4 4 4 4 4 4 2 . . Slashing Weapon 8 | . . . 7 8 5 5 5 5 10 10 10 10 10 9 9 9 9 9 9 9 9 9 9 8 8 8 13 16 16 Peak Build Rating 207 | 9 10 9 61 33 61 67 79 82 105 105 105 105 107 121 120 123 120 126 132 133 132 142 142 155 159 173 200 202 207 Average Rating 102 | 5 8 9 51 33 52 62 76 79 94 105 105 105 105 110 120 120 120 121 125 132 130 134 141 145 157 164 192 199 198 On Entrance 102 | . 9 9 9 33 33 61 67 79 79 105 105 105 105 105 120 120 120 120 123 126 132 130 141 142 155 159 173 195 202 Avg Prop Armor Cover (%) 1 | . . . . . . . . . . . . . . . . . . . . . . . . 1 . . . . . Naked Turns . | . . . . . . . . . . . . . . . . . . . . . . . . . . . . . . Heaviest Build 57 | 11 13 13 30 19 23 30 36 39 45 39 39 39 41 48 48 48 48 48 44 44 44 43 43 52 52 52 56 56 57 Greatest Support 67 | 26 31 17 55 21 35 35 40 40 45 44 44 44 49 49 49 49 49 49 49 49 49 51 51 52 65 67 63 59 59 Greatest Overweight (x) 2 | 2 . . 2 . . . . . 1 . . . . . 1 . . . 1 . . . . . . . . 1 . Average Overweight (x) . | . . . . . . . . . . . . . . . . . . . . . . . . . . . . . . Largest Inventory Capacity 5 | 2 2 2 2 2 2 3 3 3 3 3 3 3 3 3 3 3 3 3 3 3 3 3 3 3 3 3 4 4 5 Average Capacity 2 | 2 2 2 2 2 2 2 3 3 3 3 3 3 3 3 3 3 3 3 3 3 3 3 3 3 3 3 3 4 4 Most Carried 5 | . 2 2 2 2 2 3 3 3 3 3 3 3 3 3 3 3 3 3 3 3 3 3 3 3 3 3 4 4 5 Average Carried 2 | . 1 1 1 1 1 2 2 2 2 2 3 3 3 3 3 3 3 2 1 2 3 2 2 2 3 3 3 4 3 Final Capacity 5 | 2 2 2 2 2 2 3 3 3 3 3 3 3 3 3 3 3 3 3 3 3 3 3 3 3 3 3 4 4 5 Final Carried 5 | . 1 1 1 2 . 3 2 3 3 3 3 3 3 3 3 3 3 3 3 3 3 2 3 3 3 3 4 4 5 Class Distribution -------------------- 32% | Hacker-Sprinter 29% | Machinist-Sprinter 11% | Scavenger-Sprinter 10% | Mutant 8% | Commander-Sprinter 5% | Scavenger-Mutant Dominant Class ---------------- Mutant | -10/Materials Mutant | -10/Mines Scavenger-Mutant | -10/Exiles Scavenger-Sprinter | -9/Mines Scavenger-Sprinter | -8/Materials Scavenger-Sprinter | -8/Storage Commander-Sprinter | -8/Recycling Commander-Sprinter | -8/Scraptown Hacker-Sprinter | -6/Factory Hacker-Sprinter | -6/Lower Caves Hacker-Sprinter | -6/Lower Caves Hacker-Sprinter | -6/Data Miner Hacker-Sprinter | -5/Proximity Caves Hacker-Sprinter | -5/Factory Machinist-Sprinter | -5/Extension Commander-Sprinter | -5/Cetus Commander-Sprinter | -5/Archives Machinist-Sprinter | -5/Hub_04(d) Machinist-Sprinter | -4/Factory Machinist-Sprinter | -4/Upper Caves Machinist-Sprinter | -4/Upper Caves Machinist-Sprinter | -4/Warlord Machinist-Sprinter | -3/Proximity Caves Machinist-Sprinter | -3/Research Machinist-Sprinter | -3/Testing Machinist-Sprinter | -2/Research Hacker-Sprinter | -2/Quarantine Hacker-Sprinter | -1/Access Hacker-Sprinter | -1/Command Resources | -11 -10 -10 -10 -9 -8 -8 -8 -8 -6 -6 -6 -6 -5 -5 -5 -5 -5 -5 -4 -4 -4 -4 -3 -3 -3 -2 -2 -1 -1 ----------- Run | Yrd Mat Min Exi Min Mat Sto Rec Scr Fac Low Low Dat Pro Fac Ext Cet Arc Hub Fac Upp Upp War Pro Res Tes Res Qua Acc Com Matter Collected 3077 | 275 125 . 369 19 137 80 40 50 280 . . . 30 98 46 56 . 189 131 50 36 186 61 120 90 172 206 60 171 Remotely . | . . . . . . . . . . . . . . . . . . . . . . . . . . . . . . Salvage Created 53708 | 24 1179 133 2163 114 2669 1898 643 765 4457 942 334 . 765 3440 1910 408 237 2103 4137 1610 764 5504 1469 1611 457 3027 1488 2624 6833 Parts 2481 | 4 39 . 121 14 146 111 33 35 211 30 22 . 46 168 72 19 11 121 215 44 30 201 67 66 16 154 52 151 282 Haulers Intercepted 28 | . 2 . . . 4 6 . . 4 . . . . 3 . . . . . . . . 1 4 . 1 1 2 . Recyclers Shooed . | . . . . . . . . . . . . . . . . . . . . . . . . . . . . . . Parts Field Recycled . | . . . . . . . . . . . . . . . . . . . . . . . . . . . . . . Retrieved Matter . | . . . . . . . . . . . . . . . . . . . . . . . . . . . . . . Parts Self-Destructed 218 | . . . . . . . . . . 30 22 . 46 . . . . . . 44 29 . 47 . . . . . . Prevented . | . . . . . . . . . . . . . . . . . . . . . . . . . . . . . . Parts Restored . | . . . . . . . . . . . . . . . . . . . . . . . . . . . . . . Kills | -11 -10 -10 -10 -9 -8 -8 -8 -8 -6 -6 -6 -6 -5 -5 -5 -5 -5 -5 -4 -4 -4 -4 -3 -3 -3 -2 -2 -1 -1 ------- Run | Yrd Mat Min Exi Min Mat Sto Rec Scr Fac Low Low Dat Pro Fac Ext Cet Arc Hub Fac Upp Upp War Pro Res Tes Res Qua Acc Com Combat Hostiles Destroyed 919 | . 28 4 62 6 55 39 13 8 76 20 12 . 25 62 25 6 4 35 73 23 16 65 26 19 4 57 17 32 107 Melee 882 | . 11 1 50 6 55 39 13 4 75 20 12 . 25 62 25 6 4 35 73 23 16 65 26 19 4 57 17 32 107 Guns 16 | . 6 . 6 . . . . 3 1 . . . . . . . . . . . . . . . . . . . . Cannons 1 | . . . 1 . . . . . . . . . . . . . . . . . . . . . . . . . . AOE 3 | . . . 3 . . . . . . . . . . . . . . . . . . . . . . . . . . Classes Destroyed 36 | 1 8 . 5 . 4 . . 5 1 . 1 . . 1 1 . . 1 . . . 5 . . . . . . 3 Worker 7 | . 1 . . . 1 . . . 3 . . . . 1 . . . . . . . . . . . . . 1 . Builder 3 | . 2 . . . . . . . 1 . . . . . . . . . . . . . . . . . . . . Tunneler 2 | 1 . . . 1 . . . . . . . . . . . . . . . . . . . . . . . . . Hauler 28 | . 2 . . . 4 6 . . 4 . . . . 3 . . . . . . . . 1 4 . 1 1 2 . Recycler 7 | . 2 . . . . . . . 1 . . . . . 1 . . . . . . . . 1 . . . . 2 Carrier 1 | . . . . . . . . . . . . . . 1 . . . . . . . . . . . . . . . Minesweeper 2 | . . . . . . . . . . . 1 . . . . . . . . 1 . . . . . . . . . Operator 11 | . 1 . . . 2 1 . . . . . . . . . . . 2 2 . . . . . . 1 . 2 . Turret 9 | . . . . . . . . 1 . . . . . . . . . . 8 . . . . . . . . . . Watcher 49 | . 3 . . . 3 . . . 7 . . . . 3 1 2 . 4 8 . . . . 2 1 3 2 3 7 Swarmer 138 | . 5 . . 3 4 3 . . 9 10 11 . 15 14 . . . . 23 3 6 . 6 7 . 5 3 . 11 Cutter 8 | . . . . . 3 . . . . . . . . . . . . 3 . . . . . . . . . . 2 Saboteur 7 | . . . . . . . . . . . . . . . . . . 1 . . . 1 . . . . . . 5 Grunt 342 | . 23 4 29 3 33 19 2 . 34 8 . . 4 23 10 . . 9 24 16 1 7 11 5 3 25 5 8 36 Brawler 30 | . . . 5 . 1 . . . 3 . . . 2 . . . . 1 . 2 5 1 . . . 1 . 3 6 Duelist 24 | . . . 2 . 1 . 1 . 1 1 . . 2 2 1 . . 1 . . 2 . . . . 1 . 2 7 Protector 8 | . . . . . 1 . 1 . . . . . . . . . . 1 1 . . . . . . . . 1 3 Sentry 104 | . . . . . 9 14 6 . 9 1 . . 2 7 7 . 4 8 9 1 2 . 1 4 1 8 4 3 4 Demolisher 2 | . . . 1 . . . . . . . . . . . 1 . . . . . . . . . . . . . . Specialist 7 | . . . . . . . . . . . . . . . 1 . . . . . . 1 . . . 2 3 . . Hunter 66 | . . . 16 . 2 3 1 . 12 . . . . 4 3 . . . 6 . . . 2 . . 6 2 6 3 Programmer 67 | . . . 9 . . . 1 . 8 . 1 . . 10 . . . 3 8 . . . . 1 . 6 . 6 14 Heavy 8 | . . . . . 1 . . . . . . . . . . . . 1 1 . . . . . . 2 . 1 2 Behemoth 14 | . . . . . . . . . 1 . . . . 1 2 . . 1 1 1 . . . 2 . 1 . 2 2 Cetus Guard 6 | . . . . . . . . . . . . . . . . 6 . . . . . . . . . . . . . Lightning 6 | . . . . . . . . . . . . . . . . . . 6 . . . . . . . . . . . Investigator 1 | . . . . . . . . . . . . . . . . . . . . . . . . . . . . . 1 Striker 4 | . . . . . . . . . . . . . . . . . . . . . . 1 . . . . . . 3 Executioner 5 | . . . . . . . . . . . . . . . . . . . . . . . . . . . . . 5 Alpha 7 1 | . . . . . . . . . . . . . . . . . . . . . . . . . . . . . 1 Bolteater 2 | . . . . . . . . 2 . . . . . . . . . . . . . . . . . . . . . Explorer 2 | . . . . . . . . 2 . . . . . . . . . . . . . . . . . . . . . Ranger 1 | . . . . . . . . 1 . . . . . . . . . . . . . . . . . . . . . Guru 1 | . . . . . . . . 1 . . . . . . . . . . . . . . . . . . . . . Surgeon 1 | . . . . . . . . . . . . . . . . . . . . . . 1 . . . . . . . Thug 21 | . . . . . . . . 1 . . . . . . . . . . . . . 16 4 . . . . . . Savage 6 | . . . . . . . . . . . . . . . . . . . . . . 4 2 . . . . . . Butcher 7 | . . . . . . . . . . . . . . . . . . . . . . 6 1 . . . . . . Bouncer 7 | . . . . . . . . . . . . . . . . . . . . . . 7 . . . . . . . Wizard 5 | . . . . . . . . . . . . . . . . . . . . . . 3 . . . . . . 2 Fireman 1 | . . . . . . . . . . . . . . . . . . . . . . 1 . . . . . . . Mutant 12 | . . . . . . . . . . . . . . . . . . . . . . 10 1 . . . . . 1 Commander 3 | . . . . . . . . . . . . . . . . . . . . . . 3 . . . . . . . Knight 2 | . . . . . . . . . . . . . . . . . . . . . . 2 . . . . . . . Best Kill Streak 19 | 1 4 1 7 3 8 8 9 5 8 12 5 . 9 10 7 5 4 9 14 10 7 17 6 8 3 19 8 14 17 Combat Bots Only 18 | . 4 1 7 3 6 6 9 5 8 12 5 . 9 10 7 4 4 8 11 10 7 16 6 5 3 18 7 13 17 Max Kills in Single Turn 3 | 1 1 1 2 1 1 1 1 1 3 2 2 . 2 2 2 2 1 2 2 1 1 1 2 1 1 2 2 2 3 Gunslinging . | . . . . . . . . . . . . . . . . . . . . . . . . . . . . . . Exploded 1 | . . . 1 . . . . . . . . . . . . . . . . . . . . . . . . . . Melee 3 | . 1 1 1 1 1 1 1 1 1 2 2 . 2 2 2 2 1 2 2 1 1 1 2 1 1 2 2 1 3 Uniques/NPCs Destroyed 5 | . . . . . . . 1 1 . . . . . 1 . . . . . . . 2 . . . . . . . 01-MTF (-8/Recycling) Triborg (-8/Scraptown) DW-4LL (-5/Factory) Fake God Mode (-4/Warlord) Warlord (-4/Warlord) Combat | -11 -10 -10 -10 -9 -8 -8 -8 -8 -6 -6 -6 -6 -5 -5 -5 -5 -5 -5 -4 -4 -4 -4 -3 -3 -3 -2 -2 -1 -1 -------- Run | Yrd Mat Min Exi Min Mat Sto Rec Scr Fac Low Low Dat Pro Fac Ext Cet Arc Hub Fac Upp Upp War Pro Res Tes Res Qua Acc Com Hostile Shots Fired 3667 | . 150 19 214 17 140 156 18 179 256 63 28 . 55 184 73 26 13 143 279 61 40 313 105 59 26 258 71 163 558 Missed 1802 | . 44 5 96 8 50 75 7 90 129 36 16 . 25 92 41 12 6 75 143 31 21 159 58 27 18 142 35 86 275 Hits 1865 | . 106 14 118 9 90 81 11 89 127 27 12 . 30 92 32 14 7 68 136 30 19 154 47 32 8 116 36 77 283 Melee 60 | . . . 4 . 9 . . 6 1 . . . 5 1 . . . 3 . 1 1 9 1 . . 1 1 5 12 Projectile 1805 | . 106 14 114 9 81 81 11 83 126 27 12 . 25 91 32 14 7 65 136 29 18 145 46 32 8 115 35 72 271 AOE 9 | . . . 2 . . . . . . . . . . 1 . . . 2 3 . . . . . . . . . 1 Critical Strikes 76 | . . . 6 . 8 2 . 4 2 . . . . 2 2 . . 2 6 3 2 14 2 2 . 6 . 5 8 Part Disruptions 8 | . . . . . . . . . . . . . . . . . . . . . . 7 1 . . . . . . Damage Taken 33254 | . 1281 153 1572 88 1561 1279 248 1400 1913 422 186 . 560 1642 631 492 172 1891 2625 610 347 2920 728 484 169 2587 793 1483 5017 Core 24150 | . 1006 105 1219 65 1142 927 169 861 1267 303 120 . 421 1232 412 368 131 1365 1840 474 256 2110 487 322 134 1927 602 1117 3768 Absorbed by Shields 453 | . . . . . . . . . . . . . . . 22 . . . . . . . . . . . . . 431 Redirected to Core 19776 | . 716 60 1051 65 919 674 143 681 969 198 107 . 375 953 331 323 107 1165 1450 339 208 1536 400 315 94 1665 569 951 3412 Redirected to Shielding 50 | . 3 12 35 . . . . . . . . . . . . . . . . . . . . . . . . . . Ignored by Resistances 3358 | . . . . . . . . . 26 27 13 . 25 71 44 35 14 131 460 123 60 402 143 88 28 463 104 207 894 Regen/Repaired (Parts) 3065 | . . . . . . 38 37 34 317 81 36 . 38 98 54 43 9 47 291 106 30 212 160 45 1 141 164 251 832 Core Remaining (%) 70 | 100 . . . 100 . . . 6 . . . . 100 . . . . 31 . . . . 100 . 85 . 39 . . Volleys Fired 115 | 1 21 . 50 . . . . 5 34 . 1 . . . . . . . . 3 . . . . . . . . . Largest 2 | 1 1 . 1 . . . . 2 1 . 1 . . . . . . . . 1 . . . . . . . . . Hottest 250 | 40 65 . 250 . . . . 120 90 . 90 . . . . . . . . . . . . . . . . . . Shots Fired 132 | 1 21 . 52 . . . . 19 34 . 1 . . . . . 1 . . 3 . . . . . . . . . Gun 92 | 1 21 . 46 . . . . 18 5 . . . . . . . 1 . . . . . . . . . . . . Cannon 36 | . . . 6 . . . . . 29 . 1 . . . . . . . . . . . . . . . . . . Launcher . | . . . . . . . . . . . . . . . . . . . . . . . . . . . . . . Special 4 | . . . . . . . . 1 . . . . . . . . . . . 3 . . . . . . . . . Kinetic 46 | . . . 46 . . . . . . . . . . . . . . . . . . . . . . . . . . Thermal 82 | 1 21 . 6 . . . . 18 34 . 1 . . . . . 1 . . . . . . . . . . . . Explosive . | . . . . . . . . . . . . . . . . . . . . . . . . . . . . . . Electromagnetic . | . . . . . . . . . . . . . . . . . . . . . . . . . . . . . . Impact 3 | . . . . . . . . . . . . . . . . . . . . 3 . . . . . . . . . Robot Hit Streak 10 | 1 6 . 6 . . . . 10 4 . 5 . . . . . 6 . . . . . . . . . . . . Robot Miss Streak 6 | . 1 . 6 . . . . 6 2 . . . . . . . . . . . . . . . . . . . . Penetration Max 2 | . . . 1 . . . . 2 . . . . . . . . . . . . . . . . . . . . . Secondary Targets . | . . . . . . . . . . . . . . . . . . . . . . . . . . . . . . Autonomous 13 | . . . . . . . . 13 . . . . . . . . . . . . . . . . . . . . . Shots Hit Robots 2715 | 1 104 15 139 11 152 117 26 31 203 44 26 . 48 183 66 28 11 116 222 75 39 226 67 79 12 197 63 86 328 Core Hits 1153 | 1 21 1 67 7 63 42 12 19 96 18 14 . 28 79 30 12 6 50 98 28 18 89 31 32 6 85 24 48 128 Critical Kills 3 | . 2 . 1 . . . . . . . . . . . . . . . . . . . . . . . . . . Critical Parts Destroyed 15 | . 12 2 1 . . . . . . . . . . . . . . . . . . . . . . . . . . Critical Strikes 550 | . 14 2 16 . 18 16 2 4 40 12 2 . 11 48 21 11 1 35 49 23 6 60 18 18 4 53 12 7 47 Destroy 3 | . . . 3 . . . . . . . . . . . . . . . . . . . . . . . . . . Smash 16 | . 14 2 . . . . . . . . . . . . . . . . . . . . . . . . . . . Sever 526 | . . . 13 . 18 16 2 4 40 12 2 . 11 48 21 11 1 35 49 23 6 60 18 18 4 48 12 7 47 Impale 5 | . . . . . . . . . . . . . . . . . . . . . . . . . . 5 . . . Melee Attacks 3173 | . 114 20 144 11 154 130 27 19 239 48 25 . 55 214 78 28 12 140 249 82 45 255 74 91 33 263 87 129 407 Impact 134 | . 114 20 . . . . . . . . . . . . . . . . . . . . . . . . . . . Slashing 2980 | . . . 144 11 154 130 27 19 239 48 25 . 55 214 78 28 12 140 249 82 45 255 74 91 28 212 84 129 407 Piercing 59 | . . . . . . . . . . . . . . . . . . . . . . . . . 5 51 3 . . Sneak Attacks 153 | . 11 . 1 1 7 11 8 . 23 2 1 . . 20 4 . 1 8 11 1 . 7 5 8 . 8 4 4 7 Combat Hostiles 82 | . 3 . 1 . 2 5 . . 14 2 . . . 13 2 . 1 8 8 . . 7 . 4 . 6 2 . 4 Follow-up Attacks 567 | . . . . . . . . . 20 11 8 . 10 43 16 10 2 27 50 17 9 53 18 19 4 64 25 31 130 Damage Inflicted 188158 | 12 2804 480 6074 579 8275 7234 1818 1042 12832 2728 1658 . 2767 11871 4865 1863 786 8212 15900 4994 2521 15933 5044 6325 889 14906 5692 9275 30779 Guns 1266 | 12 197 . 584 . . . . 350 99 . . . . . . . 24 . . . . . . . . . . . . Cannons 121 | . . . 93 . . . . . . . 28 . . . . . . . . . . . . . . . . . . Explosions 743 | . . . 341 . . . . . 402 . . . . . . . . . . . . . . . . . . . . Melee 186028 | . 2607 480 5056 579 8275 7234 1818 692 12331 2728 1630 . 2767 11871 4865 1863 762 8212 15900 4994 2521 15933 5044 6325 889 14906 5692 9275 30779 Ramming . | . . . . . . . . . . . . . . . . . . . . . . . . . . . . . . Kinetic 584 | . . . 584 . . . . . . . . . . . . . . . . . . . . . . . . . . Thermal 1144 | 12 197 . 434 . . . . 350 99 . 28 . . . . . 24 . . . . . . . . . . . . Explosive 402 | . . . . . . . . . 402 . . . . . . . . . . . . . . . . . . . . Electromagnetic . | . . . . . . . . . . . . . . . . . . . . . . . . . . . . . . Impact 3087 | . 2607 480 . . . . . . . . . . . . . . . . . . . . . . . . . . . Slashing 179720 | . . . 5056 579 8275 7234 1818 692 12331 2728 1630 . 2767 11871 4865 1863 762 8212 15900 4994 2521 15933 5044 6325 725 11964 5577 9275 30779 Piercing 3221 | . . . . . . . . . . . . . . . . . . . . . . . . . 164 2942 115 . . Highest Corruption 12 | . . . 4 4 . . . . . . . . . 3 3 3 3 12 5 5 5 8 8 . . 3 5 3 7 Average Corruption 4 | . . . 3 4 . . . . . . . . . 1 3 3 3 5 4 5 5 6 8 . . 2 4 2 3 Corruption Purged . | . . . . . . . . . . . . . . . . . . . . . . . . . . . . . . Corruption Blocked . | . . . . . . . . . . . . . . . . . . . . . . . . . . . . . . Effects 218 | . . . 34 6 . . . . . . . . . 10 7 8 1 32 15 10 8 27 8 . . 14 2 6 30 Message Errors 53 | . . . 8 . . . . . . . . . . 3 . 1 . 11 1 5 2 10 3 . . 1 1 3 4 Matter Fused 53 | . . . 8 2 . . . . . . . . . 3 4 3 . 7 3 . 1 6 3 . . 6 . 1 6 Heat Flow Errors 25 | . . . 1 3 . . . . . . . . . 1 1 2 . 3 3 . . 3 1 . . . . . 7 Energy Discharges 32 | . . . 7 . . . . . . . . . . 2 1 1 . 3 2 2 2 2 . . . 2 1 . 7 Parts Rejected 7 | . . . 1 . . . . . . . . . . . 1 . . . 1 1 1 1 . . . 1 . . . Parts Fused 4 | . . . . . . . . . . . . . . . . . . . . . 1 1 . . . . . 1 1 Data Loss (minor) 22 | . . . 2 1 . . . . . . . . . . . 1 . 3 3 2 1 2 1 . . 1 . 1 4 Data Loss (major) 11 | . . . 1 . . . . . . . . . . 1 . . . 2 2 . . 2 . . . 3 . . . Misfires 3 | . . . 2 . . . . . . . . . . . . . 1 . . . . . . . . . . . . Alerts 6 | . . . 4 . . . . . . . . . . . . . . 1 . . . . . . . . . . 1 Misdirections 2 | . . . . . . . . . . . . . . . . . . 2 . . . . . . . . . . . Overload Shots . | . . . . . . . . . . . . . . . . . . . . . . . . . . . . . . Overflow Damage 14184 | . 581 88 279 20 557 674 167 145 832 137 138 . 109 663 158 61 . 287 1307 344 242 616 311 307 43 698 652 775 3993 Projectiles 3 | . . . . . . . . . . . 3 . . . . . . . . . . . . . . . . . . Explosions 77 | . . . 3 . . . . . 74 . . . . . . . . . . . . . . . . . . . . Melee 14104 | . 581 88 276 20 557 674 167 145 758 137 135 . 109 663 158 61 . 287 1307 344 242 616 311 307 43 698 652 775 3993 Knockbacks 16 | . 14 2 . . . . . . . . . . . . . . . . . . . . . . . . . . . Impact 15 | . 13 2 . . . . . . . . . . . . . . . . . . . . . . . . . . . Kinetic . | . . . . . . . . . . . . . . . . . . . . . . . . . . . . . . Secondary 1 | . 1 . . . . . . . . . . . . . . . . . . . . . . . . . . . . Self-Inflicted Damage . | . . . . . . . . . . . . . . . . . . . . . . . . . . . . . . Shots . | . . . . . . . . . . . . . . . . . . . . . . . . . . . . . . Rammed . | . . . . . . . . . . . . . . . . . . . . . . . . . . . . . . Targets Rammed . | . . . . . . . . . . . . . . . . . . . . . . . . . . . . . . Kicked . | . . . . . . . . . . . . . . . . . . . . . . . . . . . . . . Crushed . | . . . . . . . . . . . . . . . . . . . . . . . . . . . . . . Highest Temperature 378 | . . . 348 227 18 . . 326 280 . . . . 202 262 187 35 158 177 12 220 352 240 378 60 295 . 1 273 Average Temperature 100 | . . . 125 103 11 . . 81 33 . . . . 110 144 83 19 82 83 12 100 135 110 203 26 117 . 1 116 Received Heat Transfer 7011 | . 564 84 204 27 603 558 111 235 800 126 . . 27 285 185 120 27 321 358 136 30 463 176 51 30 717 99 169 505 Effects 2 | . . . 1 . . . . . . . . . . . . . . . . . . . . . . . . . 1 Energy Bleed 1 | . . . . . . . . . . . . . . . . . . . . . . . . . . . . . 1 Short Circuit 1 | . . . 1 . . . . . . . . . . . . . . . . . . . . . . . . . . Siege Activations . | . . . . . . . . . . . . . . . . . . . . . . . . . . . . . . Martial Activations . | . . . . . . . . . . . . . . . . . . . . . . . . . . . . . . Shielding Activations . | . . . . . . . . . . . . . . . . . . . . . . . . . . . . . . Robots Disrupted . | . . . . . . . . . . . . . . . . . . . . . . . . . . . . . . Combat Hostiles . | . . . . . . . . . . . . . . . . . . . . . . . . . . . . . . Robots Corrupted 19 | . 16 3 . . . . . . . . . . . . . . . . . . . . . . . . . . . Combat Hostiles 14 | . 11 3 . . . . . . . . . . . . . . . . . . . . . . . . . . . Parts Fried 23 | . 19 4 . . . . . . . . . . . . . . . . . . . . . . . . . . . Impact Corruptions 35 | . 30 5 . . . . . . . . . . . . . . . . . . . . . . . . . . . Robots Melted 3 | . . . 2 . . . . 1 . . . . . . . . . . . . . . . . . . . . . Combat Hostiles 3 | . . . 2 . . . . 1 . . . . . . . . . . . . . . . . . . . . . Parts Melted 22 | . 2 . 11 . . . . 4 . . . . . . . . . . . . . 4 . . . . 1 . . Heat Transferred 4288 | 25 461 . 2720 . . . . 860 148 . 37 . . . . . 37 . . . . . . . . . . . . Parts Sabotaged 5 | . . . . . . . . . . . . . . . . . . . . . . 3 . . . . . . 2 Parts Stolen . | . . . . . . . . . . . . . . . . . . . . . . . . . . . . . . Parts Stripped . | . . . . . . . . . . . . . . . . . . . . . . . . . . . . . . Power Chain Reactions . | . . . . . . . . . . . . . . . . . . . . . . . . . . . . . . Alert | -11 -10 -10 -10 -9 -8 -8 -8 -8 -6 -6 -6 -6 -5 -5 -5 -5 -5 -5 -4 -4 -4 -4 -3 -3 -3 -2 -2 -1 -1 ------- Run | Yrd Mat Min Exi Min Mat Sto Rec Scr Fac Low Low Dat Pro Fac Ext Cet Arc Hub Fac Upp Upp War Pro Res Tes Res Qua Acc Com Maximum Alert Level 5 | . 2 . . . 4 4 3 . 5 . . . . 5 5 4 2 4 5 . . . . 3 5 5 5 5 5 Low Security (%) 18 | 100 73 100 . 100 14 . . . 38 . . . . . . . . . . . . . . . . . . . . Level 1 11 | . 15 . . . 15 . . . 29 . . . . 26 . . . 9 . . . . . 18 . . . . . Level 2 11 | . 11 . . . 24 13 45 . 9 . . . . 14 . . 100 7 5 . . . . 27 . . . . . Level 3 16 | . . . . . 21 48 54 . 5 . . . . 28 39 . . 31 20 . . . . 54 . . . . . Level 4 21 | . . . . . 24 38 . . 14 . . . . 28 39 100 . 51 37 . . . . . . 16 . 52 13 Level 5 6 | . . . . . . . . . 2 . . . . 2 1 . . . 20 . . . . . . 22 . 21 31 High Security 10 | . . . . . . . . . . . . . . . 19 . . . 15 . . . . . . 61 . 26 54 Max Security 3 | . . . . . . . . . . . . . . . . . . . . . . . . . 99 . 99 . . Sterilizations 1 | . . . . . 1 . . . . . . . . . . . . . . . . . . . . . . . . Peak Influence 4050 | 5 490 189 . 91 1305 1527 874 . 1719 . . . . 1638 1866 1286 672 1373 2312 . . . . 819 2404 3369 2413 2103 4050 Initial 1894 | . . 189 . . 9 533 589 . . . . . . 228 800 1100 490 224 672 . . . . 213 446 1352 1894 1447 1345 Average 1004 | . 132 145 . 51 684 1017 714 . 454 . . . . 815 1298 1215 637 977 1449 . . . . 622 1809 2365 2190 1645 2282 Influence Increases 28588 | 5 1016 95 1420 156 1688 1488 376 . 2868 450 305 . 593 2013 1286 306 192 1975 2092 515 354 295 470 803 824 2347 519 996 3141 Destroy 0b10 Robot/C 17380 | . 560 80 1240 120 1080 780 220 . 1520 400 240 . 500 1300 640 140 80 900 1440 460 320 220 400 380 220 1140 340 620 2040 Destroy 0b10 Robot/NC 625 | 5 55 . . 5 55 35 5 . 80 . 10 . . 35 20 10 . 40 55 5 10 . 10 35 10 25 15 45 60 Destroy Leader 3006 | . 140 . . 20 264 252 . . 402 20 40 . 30 252 64 . . 238 296 50 10 . 30 112 32 258 26 130 340 Allied During Kill 1252 | . . . . . . . . . 8 . . . 3 15 478 136 80 513 . . 14 . . . 5 . . . . Successful Hack 588 | . 6 . . 11 18 12 . . 138 . . . . 122 10 . . . 10 . . . . 96 . 36 . 96 33 Select Force Hacks 630 | . 210 . . . 30 210 150 . 30 . . . . . . . . . . . . . . . . . . . . Disable Machine 660 | . 15 . . . . 60 . . 285 . . . . 15 30 . 15 75 . . . . . . 105 . 30 30 . Anti-Garrison Action 450 | . . . . . . . . . 150 . . . . . . . . . . . . . . . 150 150 . . . Destroy Structure 487 | . . . . . 1 4 1 . 90 . . . . 94 14 20 2 74 6 . . . . . 62 63 18 15 23 Partial Spotted 675 | . . . . . 75 60 . . 135 . . . . 30 30 . 15 . 90 . . . . 30 45 45 . 60 60 Lose Combat Pursuer 2835 | . 30 15 180 . 165 75 . . 30 30 15 . 60 150 . . . 135 195 . . 75 30 150 195 630 90 . 585 Influence Decreases 25725 | 5 529 458 669 1005 450 1241 1332 555 1150 925 387 1161 230 741 1015 1019 776 1244 1153 1086 538 1585 420 326 368 1382 1475 1306 1194 Entered New Map 16936 | . . 298 124 875 17 731 922 555 . 637 237 1161 . 135 835 839 736 418 701 856 332 1557 267 104 348 1052 1475 966 758 Time Decay 7202 | 5 519 160 535 130 433 350 410 . 673 278 150 . 230 556 160 180 40 446 452 230 206 28 153 222 . 180 . 190 286 Lost Part 70 | . 10 . 10 . . 10 . . 40 . . . . . . . . . . . . . . . . . . . . Lost Ally 480 | . . . . . . . . . . 10 . . . 50 20 . . 380 . . . . . . 20 . . . . Purge Threat 1037 | . . . . . . 150 . . 437 . . . . . . . . . . . . . . . . 150 . 150 150 Squads Dispatched 219 | . 10 . . . 10 13 . . 27 . . . . 10 1 . . 21 19 . . . . 4 14 36 14 10 30 Investigation 37 | . 10 . . . 4 10 . . 9 . . . . 3 . . . . . . . . . 1 . . . . . Extermination 28 | . . . . . . . . . 8 . . . . 6 . . . 3 4 . . . . 1 . 1 . 2 3 Reinforcement 32 | . . . . . 5 1 . . 4 . . . . . . . . 8 1 . . . . 2 . 6 . 1 4 Assault 110 | . . . . . 1 . . . 3 . . . . 1 1 . . 6 14 . . . . . 14 26 14 7 23 Garrison 12 | . . . . . . 2 . . 3 . . . . . . . . 4 . . . . . . . 3 . . . Intercept . | . . . . . . . . . . . . . . . . . . . . . . . . . . . . . . Searches Triggered . | . . . . . . . . . . . . . . . . . . . . . . . . . . . . . . Unchained Authorized 4 | . . . . . . . . . . . . . . 1 . . . . 1 . . . . . . 1 . 1 . Construction Impeded 2 | . . . . . . . . . 1 . . . . . . . . 1 . . . . . . . . . . . Haulers Reinforced 2 | . . . . . . . . . 1 . . . . . . . . . . . . . . . . 1 . . . Active Scanning Responses . | . . . . . . . . . . . . . . . . . . . . . . . . . . . . . . Cargo Convoy Interrupts . | . . . . . . . . . . . . . . . . . . . . . . . . . . . . . . Stealth | -11 -10 -10 -10 -9 -8 -8 -8 -8 -6 -6 -6 -6 -5 -5 -5 -5 -5 -5 -4 -4 -4 -4 -3 -3 -3 -2 -2 -1 -1 --------- Run | Yrd Mat Min Exi Min Mat Sto Rec Scr Fac Low Low Dat Pro Fac Ext Cet Arc Hub Fac Upp Upp War Pro Res Tes Res Qua Acc Com Distress Signals 36 | . 3 . . . 2 4 . . . . . . . 2 . 2 . 4 1 . . . . 4 3 4 3 1 3 Communications Jammed . | . . . . . . . . . . . . . . . . . . . . . . . . . . . . . . Distress Signals . | . . . . . . . . . . . . . . . . . . . . . . . . . . . . . . Times Spotted 1448 | . 50 5 67 6 76 51 9 61 82 20 13 . 29 75 37 10 5 63 168 23 16 97 27 32 45 135 48 44 154 Peak Tracking Total 53 | . 5 2 6 3 9 9 2 53 5 13 4 . 9 7 8 5 3 22 19 4 7 24 6 9 26 24 13 7 19 Tactical Retreats 107 | . 1 1 5 . 7 5 1 6 2 1 1 . 3 6 . . . 2 22 . . 2 2 4 3 17 2 . 14 ID Masks Used 1 | . . . . . . . . . . . . . . . . . . 1 . . . . . . . . . . . IFF Responses 7 | . . . . . . . . . . . . . . . . . . 7 . . . . . . . . . . . Traps | -11 -10 -10 -10 -9 -8 -8 -8 -8 -6 -6 -6 -6 -5 -5 -5 -5 -5 -5 -4 -4 -4 -4 -3 -3 -3 -2 -2 -1 -1 ------- Run | Yrd Mat Min Exi Min Mat Sto Rec Scr Fac Low Low Dat Pro Fac Ext Cet Arc Hub Fac Upp Upp War Pro Res Tes Res Qua Acc Com Traps Triggered 36 | . 3 . . . 3 4 . . 1 . . . . 1 1 . . 1 5 . 1 4 . 1 1 6 4 . . Indirectly . | . . . . . . . . . . . . . . . . . . . . . . . . . . . . . . Trap Hack Attempts . | . . . . . . . . . . . . . . . . . . . . . . . . . . . . . . Triggered . | . . . . . . . . . . . . . . . . . . . . . . . . . . . . . . Disarmed 6 | . . . . . . . . . 6 . . . . . . . . . . . . . . . . . . . . Reprogrammed . | . . . . . . . . . . . . . . . . . . . . . . . . . . . . . . Reused . | . . . . . . . . . . . . . . . . . . . . . . . . . . . . . . Traps Extracted . | . . . . . . . . . . . . . . . . . . . . . . . . . . . . . . Installed . | . . . . . . . . . . . . . . . . . . . . . . . . . . . . . . Triggered . | . . . . . . . . . . . . . . . . . . . . . . . . . . . . . . Machines | -11 -10 -10 -10 -9 -8 -8 -8 -8 -6 -6 -6 -6 -5 -5 -5 -5 -5 -5 -4 -4 -4 -4 -3 -3 -3 -2 -2 -1 -1 ---------- Run | Yrd Mat Min Exi Min Mat Sto Rec Scr Fac Low Low Dat Pro Fac Ext Cet Arc Hub Fac Upp Upp War Pro Res Tes Res Qua Acc Com Machines Disabled 66 | . 1 . 7 . 1 4 . 6 20 . . . . 1 2 . 1 5 . . 1 4 . . 8 1 2 2 . Max in Single Turn 7 | . 1 . 2 . 1 1 . 1 7 . . . . . 1 . . 1 . . 1 1 . . 1 1 1 1 . Garrison Access 11 | . . . . . 1 . . . 2 . . . . . . . . 1 3 . . . . 1 1 2 . . . Phase Generator 1 | . . . . . . . . . . . . . . . . . . . . . . . . . . . . . 1 Network Hub 4 | . . . . . . . . . . . . . . . . . . 4 . . . . . . . . . . . Energy Cycler 3 | . . . . . . . . . . . . . . . 3 . . . . . . . . . . . . . . Machines Repaired . | . . . . . . . . . . . . . . . . . . . . . . . . . . . . . . Machines Dismantled 6 | . . . . . . . . . . . . . . . . . . 2 . . 1 3 . . . . . . . Machines Sabotaged 6 | . 3 . . . . 3 . . . . . . . . . . . . . . . . . . . . . . . Overloaded Fab Kills . | . . . . . . . . . . . . . . . . . . . . . . . . . . . . . . Hacking | -11 -10 -10 -10 -9 -8 -8 -8 -8 -6 -6 -6 -6 -5 -5 -5 -5 -5 -5 -4 -4 -4 -4 -3 -3 -3 -2 -2 -1 -1 --------- Run | Yrd Mat Min Exi Min Mat Sto Rec Scr Fac Low Low Dat Pro Fac Ext Cet Arc Hub Fac Upp Upp War Pro Res Tes Res Qua Acc Com Machines Accessed 127 | . 9 . 1 1 10 14 7 1 24 1 2 2 . 21 4 . . 1 6 . . 4 . 5 . 5 . 3 6 Terminals 81 | . 6 . . 1 8 9 2 . 15 1 . . . 16 4 . . . 3 . . . . 3 . 4 . 3 6 Fabricators 9 | . . . . . . . . . 5 . . . . 4 . . . . . . . . . . . . . . . Repair Stations 3 | . 1 . . . . 2 . . . . . . . . . . . . . . . . . . . . . . . Recycling Units 11 | . 2 . . . 1 2 5 . 1 . . . . . . . . . . . . . . . . . . . . Scanalyzers 3 | . . . . . 1 . . . 1 . . . . . . . . . 1 . . . . . . . . . . Garrison Access 10 | . . . . . . 1 . . 2 . . . . 1 . . . 1 2 . . . . 2 . 1 . . . Total Hacks 352 | . 16 . 1 3 22 26 8 1 76 4 6 18 . 50 10 . . 1 13 . . 16 . 16 . 15 . 15 35 Successful 193 | . 8 . 1 2 13 13 7 1 46 4 6 18 . 23 4 . . 1 5 . . 16 . 7 . 4 . 6 8 Failed 159 | . 8 . . 1 9 13 1 . 30 . . . . 27 6 . . . 8 . . . . 9 . 11 . 9 27 Catastrophic 25 | . 1 . . . . 2 . . 2 . . . . 4 1 . . . 2 . . . . 1 . 4 . 3 5 Database Lockouts . | . . . . . . . . . . . . . . . . . . . . . . . . . . . . . . Manual 207 | . 16 . 1 2 18 15 6 . 47 . . . . 36 9 1 . . 10 . . . . 6 . 8 . 7 25 Terminals 239 | . 12 . . 3 19 18 3 . 48 4 . . . 37 10 . . . 10 . . . . 11 . 14 . 15 35 Fabricators 31 | . . . . . . . . . 20 . . . . 11 . . . . . . . . . . . . . . . Repair Stations 4 | . 2 . . . . 2 . . . . . . . . . . . . . . . . . . . . . . . Recycling Units 12 | . 2 . . . 1 3 5 . 1 . . . . . . . . . . . . . . . . . . . . Scanalyzers 5 | . . . . . 2 . . . 2 . . . . . . . . . 1 . . . . . . . . . . Garrison Access 19 | . . . . . . 3 . . 5 . . . . 2 . . . 1 2 . . . . 5 . 1 . . . Terminal Hacks 90 | . . . 1 2 3 5 2 1 17 4 6 18 . 6 . . . . . . . 16 . 2 . 1 . 2 4 Record 22 | . . . . . . . 1 . . 4 5 . . . . . . . . . . 12 . . . . . . . Part Schematic 16 | . . . . . . . . . 4 . . 9 . 3 . . . . . . . . . . . . . . . Robot Schematic 6 | . . . . . . . . . . . . 6 . . . . . . . . . . . . . . . . . Robot Analysis 2 | . . . . 1 . . . . . . . . . . . . . . . . . . . 1 . . . . . Prototype ID Bank 9 | . . . . . . . 1 . . . . 3 . . . . . . . . . 4 . . . . . . 1 Open Door 4 | . . . . . . 3 . . . . 1 . . . . . . . . . . . . . . . . . . Level Access Points 1 | . . . . . . . . . 1 . . . . . . . . . . . . . . . . . . . . Branch Access Points 4 | . . . . . 1 1 . . 1 . . . . . . . . . . . . . . . . . . 1 . Terminal Index 4 | . . . . . 1 . . . 1 . . . . . . . . . . . . . . 1 . . . . 1 Fabricator Index 1 | . . . . . . . . . . . . . . 1 . . . . . . . . . . . . . . . Alert Level 2 | . . . . . . . . . 2 . . . . . . . . . . . . . . . . . . . . Unreport Threat 7 | . . . . . . 1 . . 3 . . . . . . . . . . . . . . . . 1 . 1 1 Locate Traps 1 | . . . . . . . . . . . . . . 1 . . . . . . . . . . . . . . . Disarm Traps 2 | . . . . . . . . . 2 . . . . . . . . . . . . . . . . . . . . Hauler Manifests 3 | . . . . . . . . . 2 . . . . 1 . . . . . . . . . . . . . . . Registered Prototypes 2 | . . . . . 1 . . . 1 . . . . . . . . . . . . . . . . . . . . Zone Layout 1 | . . . . 1 . . . . . . . . . . . . . . . . . . . . . . . . . Proto ID Catalog 2 | . . . 1 . . . . 1 . . . . . . . . . . . . . . . . . . . . . Disengage Seal 1 | . . . . . . . . . . . . . . . . . . . . . . . . . . . . . 1 Fabricator Hacks 18 | . . . . . . . . . 11 . . . . 7 . . . . . . . . . . . . . . . Network Status 1 | . . . . . . . . . 1 . . . . . . . . . . . . . . . . . . . . Load Schematic 8 | . . . . . . . . . 5 . . . . 3 . . . . . . . . . . . . . . . Build 9 | . . . . . . . . . 5 . . . . 4 . . . . . . . . . . . . . . . Repair Station Hacks . | . . . . . . . . . . . . . . . . . . . . . . . . . . . . . . Recycling Unit Hacks . | . . . . . . . . . . . . . . . . . . . . . . . . . . . . . . Scanalyzer 4 | . . . . . 2 . . . 1 . . . . . . . . . 1 . . . . . . . . . . Retrieve Study 4 | . . . . . 2 . . . 1 . . . . . . . . . 1 . . . . . . . . . . Garrison Access Hacks 6 | . . . . . . . . . 1 . . . . . . . . 1 2 . . . . 1 . 1 . . . Seal Access 6 | . . . . . . . . . 1 . . . . . . . . 1 2 . . . . 1 . 1 . . . Unauthorized Hacks 75 | . 8 . . . 8 8 5 . 16 . . . . 10 4 . . . 2 . . . . 4 . 2 . 4 4 Terminals 56 | . 6 . . . 7 4 . . 10 . . . . 9 4 . . . 2 . . . . 4 . 2 . 4 4 Assimilate 9 | . 1 . . . . . . . 3 . . . . 3 1 . . . . . . . . 1 . . . . . Botnet 35 | . . . . . 7 . . . 5 . . . . 6 3 . . . 2 . . . . 3 . 2 . 3 4 Operators 1 | . . . . . . . . . . . . . . . . . . . . . . . . . . . . 1 . Sabotage 8 | . 4 . . . . 4 . . . . . . . . . . . . . . . . . . . . . . . Search 3 | . 1 . . . . . . . 2 . . . . . . . . . . . . . . . . . . . . Fabricators 6 | . . . . . . . . . 5 . . . . 1 . . . . . . . . . . . . . . . Report 1 | . . . . . . . . . 1 . . . . . . . . . . . . . . . . . . . . Prioritize 4 | . . . . . . . . . 4 . . . . . . . . . . . . . . . . . . . . Haulers 1 | . . . . . . . . . . . . . . 1 . . . . . . . . . . . . . . . Repair Stations 2 | . . . . . . 2 . . . . . . . . . . . . . . . . . . . . . . . Patch 2 | . . . . . . 2 . . . . . . . . . . . . . . . . . . . . . . . Recycling Units 11 | . 2 . . . 1 2 5 . 1 . . . . . . . . . . . . . . . . . . . . Tunnel 11 | . 2 . . . 1 2 5 . 1 . . . . . . . . . . . . . . . . . . . . Scanalyzers . | . . . . . . . . . . . . . . . . . . . . . . . . . . . . . . Garrison Access . | . . . . . . . . . . . . . . . . . . . . . . . . . . . . . . Data Cores Recovered 12 | . 1 . . . 2 1 . . . . . . . . 2 . . 2 1 . . . . . . 1 . 2 . Used 1 | . . . . . . . . . . . . . . . . . . . . . . . . . . 1 . . . Hacking Detections 77 | . 3 . . 1 7 6 1 . 21 1 . . . 19 2 . . . 2 . . . . 3 . 4 . 2 5 Full Trace Events 16 | . 2 . . . 2 2 . . 6 1 . . . 3 . . . . . . . . . . . . . . . Feedback Events . | . . . . . . . . . . . . . . . . . . . . . . . . . . . . . . Feedback Blocked . | . . . . . . . . . . . . . . . . . . . . . . . . . . . . . . Robot Schematics Acquired 6 | . . . . . . . . . . . . 6 . . . . . . . . . . . . . . . . . Robots Built 1 | . . . . . . . . . . . . . . 1 . . . . . . . . . . . . . . . Authchips . | . . . . . . . . . . . . . . . . . . . . . . . . . . . . . . Time 169 | . . . . . . . . . . . . . . 169 . . . . . . . . . . . . . . . Total Robot Build Rating 6 | . . . . . . . . . . . . . . 6 . . . . . . . . . . . . . . . Part Schematics Acquired 16 | . . . . . . . . . 4 . . 9 . 3 . . . . . . . . . . . . . . . Parts Built 15 | . . . . . . . . . 9 . . . . 6 . . . . . . . . . . . . . . . Authchips . | . . . . . . . . . . . . . . . . . . . . . . . . . . . . . . Time 525 | . . . . . . . . . 292 . . . . 233 . . . . . . . . . . . . . . . Total Part Build Rating 87 | . . . . . . . . . 45 . . . . 42 . . . . . . . . . . . . . . . Part Studies Acquired 3 | . . . . . 1 . . . 1 . . . . . . . . . 1 . . . . . . . . . . Parts Repaired . | . . . . . . . . . . . . . . . . . . . . . . . . . . . . . . Time . | . . . . . . . . . . . . . . . . . . . . . . . . . . . . . . Parts Recycled . | . . . . . . . . . . . . . . . . . . . . . . . . . . . . . . Recycled Matter . | . . . . . . . . . . . . . . . . . . . . . . . . . . . . . . Retrieved Matter . | . . . . . . . . . . . . . . . . . . . . . . . . . . . . . . Retrieved Components . | . . . . . . . . . . . . . . . . . . . . . . . . . . . . . . Parts Scanalyzed . | . . . . . . . . . . . . . . . . . . . . . . . . . . . . . . Part Schematics Acquired . | . . . . . . . . . . . . . . . . . . . . . . . . . . . . . . Parts Damaged . | . . . . . . . . . . . . . . . . . . . . . . . . . . . . . . Bothacking | -11 -10 -10 -10 -9 -8 -8 -8 -8 -6 -6 -6 -6 -5 -5 -5 -5 -5 -5 -4 -4 -4 -4 -3 -3 -3 -2 -2 -1 -1 ------------ Run | Yrd Mat Min Exi Min Mat Sto Rec Scr Fac Low Low Dat Pro Fac Ext Cet Arc Hub Fac Upp Upp War Pro Res Tes Res Qua Acc Com Used RIF Installer . | . . . . . . . . . . . . . . . . . . . . . . . . . . . . . . Robots Hacked . | . . . . . . . . . . . . . . . . . . . . . . . . . . . . . . Non-combat . | . . . . . . . . . . . . . . . . . . . . . . . . . . . . . . Combat . | . . . . . . . . . . . . . . . . . . . . . . . . . . . . . . Robot Hacks Applied . | . . . . . . . . . . . . . . . . . . . . . . . . . . . . . . Relay Couplers Released 7 | . . . . . 1 . . . 1 . . . . 2 . . . . 1 . . . . . . 2 . . . Machine Destruction 4 | . . . . . 1 . . . 1 . . . . . . . . . . . . . . . . 2 . . . Programmers 3 | . . . . . . . . . . . . . . 2 . . . . 1 . . . . . . . . . . Fabnet Peak Effective % . | . . . . . . . . . . . . . . . . . . . . . . . . . . . . . . Robots Rewired 53 | . . . . . . . 34 . 1 . . . 2 . 13 . . . . . 2 . . . 1 . . . . Allies Hacked 2 | . . . . . . . . . . . . . . 1 . . . . . . . . . . 1 . . . . Hacks Repelled . | . . . . . . . . . . . . . . . . . . . . . . . . . . . . . . Allies | -11 -10 -10 -10 -9 -8 -8 -8 -8 -6 -6 -6 -6 -5 -5 -5 -5 -5 -5 -4 -4 -4 -4 -3 -3 -3 -2 -2 -1 -1 -------- Run | Yrd Mat Min Exi Min Mat Sto Rec Scr Fac Low Low Dat Pro Fac Ext Cet Arc Hub Fac Upp Upp War Pro Res Tes Res Qua Acc Com Total Allies 79 | . . 3 . . . . 34 . 4 . . . 2 4 24 5 . . . . 2 . . . 1 . . . . Largest Group 34 | . . 3 . . . . 34 27 3 2 2 . 2 3 20 21 20 20 . . 2 2 . . 1 . . . . Highest-Rated Group 1080 | . . 40 . . . . 577 502 78 52 52 . 59 78 739 1080 920 920 . . 79 79 . . 124 . . . . Highest-Rated Ally 159 | . . 16 . . . . 34 34 30 26 26 . 30 49 159 143 96 96 . . 49 49 . . 124 . . . . Total Orders 77 | . . . . . . . 6 47 13 1 1 . . 9 . . . . . . . . . . . . . . . STAY 49 | . . . . . . . 6 30 7 1 1 . . 4 . . . . . . . . . . . . . . . FOLLOW 28 | . . . . . . . . 17 6 . . . . 5 . . . . . . . . . . . . . . . Ally Attacks 378 | . . 5 . . . . . 145 . . . . . 5 52 25 13 121 . . . 5 . . 7 . . . . Total Damage 9935 | . . 35 . . . . . 2937 . . . . . 424 812 779 293 2949 . . . 47 . . 1659 . . . . Kills 65 | . . 1 . . . . . 27 . . . . . 3 11 1 . 13 . . . 1 . . 8 . . . . Allies Corrupted 6 | . . . . . . . . . . . . . . 1 . . . 5 . . . . . . . . . . . Allies Melted 1 | . . . . . . . . . . . . . . . . . . . . . . . . . 1 . . . . Intel | -11 -10 -10 -10 -9 -8 -8 -8 -8 -6 -6 -6 -6 -5 -5 -5 -5 -5 -5 -4 -4 -4 -4 -3 -3 -3 -2 -2 -1 -1 ------- Run | Yrd Mat Min Exi Min Mat Sto Rec Scr Fac Low Low Dat Pro Fac Ext Cet Arc Hub Fac Upp Upp War Pro Res Tes Res Qua Acc Com Active Infowar (turns) 8685 | 10 1132 338 1884 267 1062 781 982 684 526 . . . . . . . . 41 . 469 120 . . . . 353 2 1 33 Optics 1 | . . . . . . . . . . . . . . . . . . . . . . . . . . . . 1 . Terrain 1636 | 10 1037 . . . . . . . . . . . . . . . . . . 469 120 . . . . . . . . Seismic 7696 | 7 1132 338 1884 267 1062 781 982 684 526 . . . . . . . . . . . . . . . . . . . 33 Machine Analysis 353 | . . . . . . . . . . . . . . . . . . . . . . . . . . 353 . . . Jamming 2 | . . . . . . . . . . . . . . . . . . . . . . . . . . . 2 . . ID Mask 41 | . . . . . . . . . . . . . . . . . . 41 . . . . . . . . . . . Robot Analysis Total 2 | . . . . 1 . . . . . . . . . . . . . . . . . . . 1 . . . . . Derelict Logs Recovered 10 | . . 2 . 1 . . . . . 2 1 . 1 . . . . . . 1 2 . . . . . . . . Drone Launches . | . . . . . . . . . . . . . . . . . . . . . . . . . . . . . . Drone Recoveries . | . . . . . . . . . . . . . . . . . . . . . . . . . . . . . . Exploration | -11 -10 -10 -10 -9 -8 -8 -8 -8 -6 -6 -6 -6 -5 -5 -5 -5 -5 -5 -4 -4 -4 -4 -3 -3 -3 -2 -2 -1 -1 ------------- Run | Yrd Mat Min Exi Min Mat Sto Rec Scr Fac Low Low Dat Pro Fac Ext Cet Arc Hub Fac Upp Upp War Pro Res Tes Res Qua Acc Com Turns Passed 23263 | 62 1641 338 1884 267 1062 781 982 684 2974 605 308 18 482 1632 410 374 96 1114 1337 481 435 832 501 474 268 959 346 533 1383 Spaces Moved 43185 | 53 1689 633 1994 615 2198 1274 1156 1290 7232 1410 1143 78 1231 3375 548 208 91 1156 3272 1076 1129 1193 1272 1099 860 1948 754 996 2212 Core 5 | 5 . . . . . . . . . . . . . . . . . . . . . . . . . . . . . Treads . | . . . . . . . . . . . . . . . . . . . . . . . . . . . . . . Legs . | . . . . . . . . . . . . . . . . . . . . . . . . . . . . . . Wheels 712 | 48 664 . . . . . . . . . . . . . . . . . . . . . . . . . . . . Hover . | . . . . . . . . . . . . . . . . . . . . . . . . . . . . . . Flight 42468 | . 1025 633 1994 615 2198 1274 1156 1290 7232 1410 1143 78 1231 3375 548 208 91 1156 3272 1076 1129 1193 1272 1099 860 1948 754 996 2212 Fastest Speed 12 | 50 34 34 31 31 23 23 23 23 23 23 23 23 23 23 23 23 23 23 23 23 23 23 23 23 12 12 25 26 19 Average Speed 26 | 88 57 34 47 31 24 23 23 23 23 23 23 23 23 23 23 23 23 23 23 23 23 23 23 23 23 24 25 26 25 Slowest Speed 200 | 150 90 34 200 31 31 24 23 23 96 23 23 23 23 23 91 23 23 23 91 23 23 26 23 26 24 25 27 94 28 Overloaded Moves 59 | . . . . . . . . . . . . . . . . . . . . . . . . . 31 23 . . 5 Propulsion Burnouts . | . . . . . . . . . . . . . . . . . . . . . . . . . . . . . . Robots Hopped 198 | . 3 . 1 4 8 3 19 15 71 . 1 . . 13 8 2 . 4 12 . . 1 . . 2 18 6 3 4 Potential Cave-ins . | . . . . . . . . . . . . . . . . . . . . . . . . . . . . . . Cave-ins Triggered . | . . . . . . . . . . . . . . . . . . . . . . . . . . . . . . Teleports 1 | . . . . . . . . . . . . . . . . . . . . . . . . . . . 1 . . Exploration Rate (%) 78 | 3 99 97 93 95 95 95 98 69 89 99 96 69 99 65 74 59 79 93 67 96 98 86 99 37 88 60 74 23 47 Regions Visited 29 Branch Regions 21 Pre-discovered Areas 17 | . 2 1 . . 1 3 5 . 1 2 . . 1 . . . . . . . 1 . . . . . . . . Known Exits Taken 10 | . . . . . 1 1 . . 1 . . . 1 1 . . . . . . . . 1 . 1 1 1 1 . Unknown Exits Taken 19 | 1 1 1 1 1 . . 1 1 . 1 1 1 . . 1 1 1 1 1 1 1 1 . 1 . . . . . Scrap Searched 37 | . . 1 . 1 . . . 8 . 5 7 . 5 . . . . . . 4 4 . 2 . . . . . . Spaces Dug 82 | . . . 1 . 1 4 . . 14 . . . . 7 1 . . 5 3 1 . 2 . . 7 20 5 5 6 Terrain Destroyed 177 | . . . 12 . 1 4 . . 96 . . . . 7 1 . . 5 3 3 . 2 . . 7 20 5 5 6 Melee 81 | . . . 1 . 1 4 . . 14 . . . . 7 1 . . 5 3 . . 2 . . 7 20 5 5 6 Projectile 3 | . . . . . . . . . . . . . . . . . . . . 3 . . . . . . . . . AOE 93 | . . . 11 . . . . . 82 . . . . . . . . . . . . . . . . . . . . Terrain Rammed . | . . . . . . . . . . . . . . . . . . . . . . . . . . . . . . Walls Destroyed . | . . . . . . . . . . . . . . . . . . . . . . . . . . . . . . Machines Disabled . | . . . . . . . . . . . . . . . . . . . . . . . . . . . . . . Actions | -11 -10 -10 -10 -9 -8 -8 -8 -8 -6 -6 -6 -6 -5 -5 -5 -5 -5 -5 -4 -4 -4 -4 -3 -3 -3 -2 -2 -1 -1 --------- Run | Yrd Mat Min Exi Min Mat Sto Rec Scr Fac Low Low Dat Pro Fac Ext Cet Arc Hub Fac Upp Upp War Pro Res Tes Res Qua Acc Com Total 52929 | 63 2132 721 2741 677 2568 1627 1825 1628 8215 1664 1171 77 1397 4112 795 521 161 1947 3754 1275 1287 1658 1456 1278 909 2319 863 1217 2871 Wait 5259 | 2 258 62 413 47 132 114 352 311 661 202 . . 88 509 127 281 52 615 150 95 93 137 63 73 19 61 22 94 226 Move 42787 | 52 1682 632 1991 606 2181 1266 1121 1266 7098 1409 1140 77 1230 3351 531 204 90 1147 3247 1075 1128 1189 1271 1098 854 1913 744 989 2205 Hop 167 | . 3 . 1 4 8 3 15 8 62 . 1 . . 9 8 1 . 4 12 . . 1 . . 2 16 3 3 3 Pick Up 66 | . 2 2 12 2 . 4 2 3 3 1 . . . 1 . . . 3 5 2 . 8 7 1 1 . 2 . 5 Fast Attach 85 | 7 4 . 11 . 8 1 1 1 7 . . . . 2 1 . . 1 10 3 2 8 . 2 . 4 6 1 5 Attach 8 | . 1 . 2 . . . . . 1 . . . . . . . . 2 . 1 . . . . . . 1 . . Detach 3 | . 2 . 1 . . . . . . . . . . . . . . . . . . . . . . . . . . Swap 141 | 1 7 . 4 . 5 7 3 4 21 . . . 3 7 . 2 . 11 1 1 1 6 4 15 5 8 13 4 8 Drop 95 | . 4 2 19 1 7 3 4 2 7 1 . . . 4 . . . 2 6 2 . 9 6 5 1 1 5 . 4 Fire 115 | 1 21 . 50 . . . . 5 34 . 1 . . . . . . . . 3 . . . . . . . . . Melee 2261 | . 114 20 144 11 154 130 27 18 196 33 17 . 38 147 53 18 8 95 176 58 30 175 49 60 19 155 47 64 205 Ram . | . . . . . . . . . . . . . . . . . . . . . . . . . . . . . . Kick . | . . . . . . . . . . . . . . . . . . . . . . . . . . . . . . Crush . | . . . . . . . . . . . . . . . . . . . . . . . . . . . . . . Escape Stasis 180 | . . . . . . 33 . . . . . . . 1 15 . . 13 . . . 1 . . 1 60 . . 56 Rewire 355 | . . . . . . . 278 . 25 . . . 11 1 31 . . . . . 2 . . . 7 . . . . Trap . | . . . . . . . . . . . . . . . . . . . . . . . . . . . . . . Miscellaneous 1407 | . 34 3 93 6 73 66 22 10 100 18 12 . 27 80 29 15 11 54 147 35 31 124 56 24 . 101 20 62 154 Route ------- -11/Scrapyard -10/Materials (discovered 5 exits: [*Mat x3] / [*Min x2]) -10/Mines (discovered 3 exits: [*Mat x2] / *Exi) -10/Exiles -9/Mines (discovered 2 exits: *Mat x2) -8/Materials (discovered 5 exits: [*Fac x3] / *Sto x2) -8/Storage (discovered 2 exits: [*Fac] / *Rec) -8/Recycling (discovered 2 exits: *Fac / *Scr) -8/Scraptown -6/Factory (discovered 6 exits: *Fac x4 / *Low x2) -6/Lower Caves -6/Lower Caves (discovered 2 exits: *Fac / *Dat) -6/Data Miner -5/Proximity Caves -5/Factory (discovered 7 exits: *Fac x3 / *Upp x2 / *Ext x2) -5/Extension (discovered 2 exits: *Fac / *Cet) -5/Cetus (discovered 2 exits: *Fac / [*Arc]) -5/Archives (discovered 2 exits: *Hub x2) -5/Hub_04(d) (discovered 4 exits: *Fac x4) -4/Factory (discovered 4 exits: *Res x2 / [*Upp x2]) -4/Upper Caves -4/Upper Caves (discovered 2 exits: *Res / *War) -4/Warlord -3/Proximity Caves -3/Research (discovered 4 exits: *Res x3 / [*Tes]) -3/Testing -2/Research (discovered 3 exits: *Acc x2 / *Qua) -2/Quarantine -1/Access -1/Command History --------- Turn | Location | Event 1 | -11/Scrapyard | Upgraded with Power slot (x1) 1 | -11/Scrapyard | Upgraded with Propulsion slot (x1) 1 | -11/Scrapyard | Upgraded with Utility slot (x1) 26 | -11/Scrapyard | Discovered new exit (range 15) 63 | -11/Scrapyard | Entered Materials 217 | -10/Materials | Discovered new exit (range 10) 304 | -10/Materials | Build established: Mutant 338 | -10/Materials | Discovered new exit (range 11) 880 | -10/Materials | Reached level 2 940 | -10/Materials | Upgraded with Utility slot (x1) 986 | -10/Materials | Discovered new exit (range 16) 1017 | -10/Materials | Core integrity fell below 50% 1071 | -10/Materials | Core integrity fell below 20% 1075 | -10/Materials | Discovered new exit (range 13) 1109 | -10/Materials | Discovered new exit (range 15) 1335 | -10/Materials | Reached level 3 1607 | -10/Materials | Upgraded with Propulsion slot (x1) 1683 | -10/Materials | Reached level 4 1704 | -10/Materials | Entered Mines 1705 | -10/Mines | Learned location of Storage (-8) 1723 | -10/Mines | Assisted by bots powering up and referring to "LRC-V3" 1738 | -10/Mines | Deemed a non-threat by the Exiles lab entrance 1757 | -10/Mines | A weapon hastily lodged in a ceiling crevice suddenly fell to the ground 1788 | -10/Mines | Learned Materials emergency access door positions 1794 | -10/Mines | Learned Materials stockpile data 1798 | -10/Mines | Discovered new exit (range 8) 1820 | -10/Mines | Excavation squad dispatched 1820 | -10/Mines | A large section of the Mines collapsed 1925 | -10/Mines | Discovered new exit (range 11) 1948 | -10/Mines | Received a Rocket Launcher from a helpful Derelict 1978 | -10/Mines | Discovered new exit (range 5) 2042 | -10/Mines | Entered Exiles 2051 | -10/Exiles | Met 8R-AWN 2056 | -10/Exiles | Met EX-HEX 2066 | -10/Exiles | Met EX-BIN 2070 | -10/Exiles | Aligned with FarCom system 2071 | -10/Exiles | Given EX-Vault access code 2079 | -10/Exiles | Opened EX-Vault 2081 | -10/Exiles | Found Longsword +1 2089 | -10/Exiles | Warned to stay clear of 0b10 Research branches 2095 | -10/Exiles | Exiles lab attacked by MAIN.C 2175 | -10/Exiles | Upgraded with Propulsion slot (x1) 2175 | -10/Exiles | Upgraded with Weapon slot (x1) 2191 | -10/Exiles | Found Flying Fortress v7 2193 | -10/Exiles | Lost 7 allies 2194 | -10/Exiles | Found Firepult 2217 | -10/Exiles | Reached level 5 2628 | -10/Exiles | Upgraded with Utility slot (x1) 2653 | -10/Exiles | Reached level 6 2800 | -10/Exiles | Build established: Scavenger-Mutant 3555 | -10/Exiles | Reached level 7 3637 | -10/Exiles | Destroyed 7 combat bots 3922 | -10/Exiles | Discovered new exit (range 14) 3926 | -10/Exiles | Left Exiles lab with Longsword +1 3926 | -10/Exiles | Entered Mines 4003 | -9/Mines | Discovered new exit (range 9) 4072 | -9/Mines | Found a hidden stash of uninstalled traps 4133 | -9/Mines | Discovered new exit (range 10) 4139 | -9/Mines | Build established: Scavenger-Sprinter 4148 | -9/Mines | Learned location of 1 exit from Materials 4193 | -9/Mines | Entered Materials 4194 | -8/Materials | Identified exit to Storage 4195 | -8/Materials | Reached level 8 4201 | -8/Materials | Upgraded with Propulsion slot (x1) 4201 | -8/Materials | Upgraded with Utility slot (x1) 4257 | -8/Materials | Reached level 9 4328 | -8/Materials | Upgraded with Utility slot (x1) 4453 | -8/Materials | Reached level 10 4486 | -8/Materials | Discovered new exit (range 12) 4670 | -8/Materials | Reached level 11 4700 | -8/Materials | Upgraded with Utility slot (x1) 4739 | -8/Materials | Core integrity fell below 50% 4839 | -8/Materials | Discovered new exit (range 15) 4917 | -8/Materials | Reached level 12 4943 | -8/Materials | Discovered new exit (range 16) 4993 | -8/Materials | First assault squad dispatched 5050 | -8/Materials | Upgraded with Utility slot (x1) 5100 | -8/Materials | Sterilization system engaged 5100 | -8/Materials | Non-combat units ordered to evacuate 5200 | -8/Materials | Combat units ordered to evacuate 5255 | -8/Materials | Entered Storage 5268 | -8/Storage | Reached level 13 5421 | -8/Storage | Identified exit to Recycling 5428 | -8/Storage | Discovered new exit (range 16) 5464 | -8/Storage | Used back door to open Recycling access 5488 | -8/Storage | Garrison activated, responded to threat 5498 | -8/Storage | Learned location of Armory (-4) 5623 | -8/Storage | Met 01-MTF 5819 | -8/Storage | Found Prototype Protection 5819 | -8/Storage | Identified Lgt. Regenerative Plating 5831 | -8/Storage | Reached level 14 5938 | -8/Storage | Garrison activated, responded to threat 6036 | -8/Storage | Entered Recycling 6036 | -8/Recycling | Accompanied by 1 ally (01-MTF) 6114 | -8/Recycling | Destroyed 9 combat bots 6144 | -8/Recycling | Discovered new exit (range 15) 6163 | -8/Recycling | Scanned before Scraplab entrance 6218 | -8/Recycling | Destroyed 01-MTF 6221 | -8/Recycling | Found Prototype Device 6221 | -8/Recycling | Identified 01-MTF's Autohacker 6255 | -8/Recycling | Found Prototype Energy Gun 6255 | -8/Recycling | Identified KN-7UR's Autopenetrator 6813 | -8/Recycling | Entered Scraplab 6815 | -8/Recycling | Discovered new exit (range 2) 6962 | -8/Recycling | Build established: Commander-Sprinter 7018 | -8/Recycling | Entered Scraptown 7018 | -8/Scraptown | Accompanied by 27 allies 7047 | -8/Scraptown | Visited Symbiants 7049 | -8/Scraptown | Visited Bundlers 7061 | -8/Scraptown | Visited Spacefarers 7064 | -8/Scraptown | Visited Cyclists 7067 | -8/Scraptown | Visited Assassins FH 7069 | -8/Scraptown | Heard Great Nut preacher, LISTEN AND RECITE! 7108 | -8/Scraptown | Visited Science Testing Area 7111 | -8/Scraptown | Visited Shadow of the Wyrm 7116 | -8/Scraptown | Turned away by UFD registrar 7540 | -8/Scraptown | Attached CPS modules to Triborg. 7541 | -8/Scraptown | Attacked by Scraptown defenders 7542 | -8/Scraptown | Destroyed Triborg 7592 | -8/Scraptown | Found Prototype Special Weapon 7592 | -8/Scraptown | Identified Exp. Plasma Cutter 7593 | -8/Scraptown | Lost 6 allies 7603 | -8/Scraptown | Visited Chapter 10 7617 | -8/Scraptown | Visited Curators Association 7639 | -8/Scraptown | Upgraded with Weapon slot (x1) 7639 | -8/Scraptown | Found Prototype Slashing Weapon 7639 | -8/Scraptown | Identified DM-GVY's Chainsaw 7682 | -8/Scraptown | Visited Science Guys 7693 | -8/Scraptown | Core integrity fell below 20% 7701 | -8/Scraptown | Discovered new exit (range 5) 7702 | -8/Scraptown | Entered Factory 7703 | -6/Factory | Core integrity fell below 50% 7703 | -6/Factory | Core integrity fell below 20% 7704 | -6/Factory | Reached level 15 7761 | -6/Factory | Reached level 16 7840 | -6/Factory | Discovered new exit (range 16) 8165 | -6/Factory | Build established: Hacker-Sprinter 8177 | -6/Factory | Fabricated Biomechanical Wings (x1) 8226 | -6/Factory | Fabricated Adv. Melee Analysis Suite (x2) 8496 | -6/Factory | Identified exit to Lower Caves 8496 | -6/Factory | Identified exit to Factory 8517 | -6/Factory | Reached level 17 8569 | -6/Factory | Destroyed 8 combat bots 8676 | -6/Factory | Fabricated Imp. Reaction Control System (x2) 9028 | -6/Factory | Reached level 18 9055 | -6/Factory | Upgraded with Utility slot (x1) 9325 | -6/Factory | Spotted B-75 Beast 9345 | -6/Factory | Destroyed B-75 Beast 9574 | -6/Factory | Fabricated Imp. Actuator Array (x2) 9921 | -6/Factory | Reached level 19 10178 | -6/Factory | Garrison activated, responded to threat 10441 | -6/Factory | Reached level 20 10449 | -6/Factory | Upgraded with Utility slot (x1) 10502 | -6/Factory | First assault squad dispatched 10554 | -6/Factory | Fabricated Adv. Melee Analysis Suite (x2) 10650 | -6/Factory | Destroyed 7 combat bots 10676 | -6/Factory | Entered Lower Caves 10676 | -6/Lower Caves | Accompanied by 3 allies 10865 | -6/Lower Caves | Learned Factory stockpile data 10886 | -6/Lower Caves | Learned Factory security intel 10887 | -6/Lower Caves | Attracted the attention of an 0b10 base 10961 | -6/Lower Caves | Destroyed 12 combat bots 10980 | -6/Lower Caves | Discovered new exit (range 2) 11281 | -6/Lower Caves | Entered another Lower Caves area 11281 | -6/Lower Caves | Accompanied by 2 allies 11447 | -6/Lower Caves | Discovered new exit (range 7) 11455 | -6/Lower Caves | Learned 4 Factory zone layouts 11500 | -6/Lower Caves | Entered an active Warlord outpost 11502 | -6/Lower Caves | Learned location of 1 exit from Research 11502 | -6/Lower Caves | Learned Armory terminal intel 11502 | -6/Lower Caves | Learned Extension security intel 11502 | -6/Lower Caves | Learned 8 Factory zone layouts 11502 | -6/Lower Caves | Learned Armory garrison access intel 11528 | -6/Lower Caves | Discovered exit to Factory (range 10) 11589 | -6/Lower Caves | Entered Data Miner 11589 | -6/Data Miner | Discovered new exit (range 6) 11594 | -6/Data Miner | Met Data Miner 11601 | -6/Data Miner | Received God Mode back door access code from Data Miner 11607 | -6/Data Miner | Entered Proximity Caves 11608 | -5/Proximity Caves | Reached level 21 11678 | -5/Proximity Caves | Discovered exit to Factory (range 5) 11685 | -5/Proximity Caves | Attracted the attention of an 0b10 outpost 11785 | -5/Proximity Caves | Destroyed 9 combat bots 11801 | -5/Proximity Caves | Found DCF Scrap (13 items) 11822 | -5/Proximity Caves | Reached level 22 11923 | -5/Proximity Caves | Attracted the attention of an 0b10 checkpoint 12089 | -5/Proximity Caves | Entered Factory 12089 | -5/Factory | Accompanied by 2 allies 12090 | -5/Factory | Identified exit to Upper Caves 12090 | -5/Factory | Identified exit to Extension 12146 | -5/Factory | Discovered exit to Extension (range 16) 12338 | -5/Factory | Discovered new exit (range 9) 12509 | -5/Factory | Discovered exit to Upper Caves (range 16) 12644 | -5/Factory | Reached level 23 12731 | -5/Factory | Spotted B-75 Beast 12746 | -5/Factory | Destroyed B-75 Beast 12829 | -5/Factory | Lost 3 allies 12862 | -5/Factory | Upgraded with Utility slot (x1) 12934 | -5/Factory | Fabricated Adv. Actuator Array? 13092 | -5/Factory | Unchained authorized (DW-4LL) 13103 | -5/Factory | Fabricated Nanoactuators (x2) 13170 | -5/Factory | Discovered new exit (range 9) 13212 | -5/Factory | DW-4LL burst out of a wall 13224 | -5/Factory | Destroyed DW-4LL 13226 | -5/Factory | Found ID Mask 13285 | -5/Factory | Build established: Machinist-Sprinter 13289 | -5/Factory | First assault squad dispatched 13334 | -5/Factory | Destroyed 10 combat bots 13532 | -5/Factory | Fabricated Imp. Force Booster (x2) 13570 | -5/Factory | Discovered new exit (range 14) 13610 | -5/Factory | Fabricated D-63 Destroyer? 13670 | -5/Factory | Reached level 24 13721 | -5/Factory | Entered Extension 13721 | -5/Extension | Accompanied by 1 ally 13729 | -5/Extension | Disrupted transfer network 13733 | -5/Extension | Rescued a captive Derelict 13733 | -5/Extension | Rescued a captive Derelict 13735 | -5/Extension | Rescued a captive Derelict 13738 | -5/Extension | Rescued a captive Derelict 13784 | -5/Extension | Rescued a captive Derelict 13847 | -5/Extension | Spotted B-75 Beast 13871 | -5/Extension | Spotted B-75 Beast 13880 | -5/Extension | Destroyed B-75 Beast 13882 | -5/Extension | Destroyed B-75 Beast 13905 | -5/Extension | Rescued A7 13932 | -5/Extension | Rescued a captive Derelict 13933 | -5/Extension | Rescued a captive Derelict 13951 | -5/Extension | Destroyed 7 combat bots 13960 | -5/Extension | Rescued a captive Derelict 13987 | -5/Extension | Energy Cycler disabled 13988 | -5/Extension | Rescued a captive Derelict 13988 | -5/Extension | Rescued a captive Derelict 13988 | -5/Extension | Rescued a captive Derelict 14021 | -5/Extension | First assault squad dispatched 14051 | -5/Extension | High security lockdown imminent 14060 | -5/Extension | Discovered new exit (range 10) 14060 | -5/Extension | Discovered new exit (range 6) 14131 | -5/Extension | High security lockdown engaged 14131 | -5/Extension | Entered Cetus 14131 | -5/Cetus | Accompanied by 16 allies (A7) 14135 | -5/Cetus | Spotted Cetus Guard 14135 | -5/Cetus | Spotted Cetus Guard 14135 | -5/Cetus | Spotted Cetus Guard 14135 | -5/Cetus | Spotted Cetus Guard 14142 | -5/Cetus | Destroyed Cetus Guard 14145 | -5/Cetus | Destroyed Cetus Guard 14145 | -5/Cetus | Destroyed Cetus Guard 14154 | -5/Cetus | Destroyed Cetus Guard 14154 | -5/Cetus | Reached level 25 14178 | -5/Cetus | Acquired a Cetus Manufacturing Module code from A7 14186 | -5/Cetus | Started Cetus Manufacturing Module 14211 | -5/Cetus | Manufactured an Enhanced Grunt 14236 | -5/Cetus | Manufactured an Enhanced Grunt 14255 | -5/Cetus | Build established: Commander-Sprinter 14261 | -5/Cetus | Manufactured an Enhanced Grunt 14286 | -5/Cetus | Manufactured an Enhanced Grunt 14311 | -5/Cetus | Manufactured an Enhanced Grunt 14323 | -5/Cetus | Discovered new exit (range 16) 14328 | -5/Cetus | Spotted Cetus Guard 14353 | -5/Cetus | Spotted Cetus Guard 14353 | -5/Cetus | Spotted Cetus Guard 14353 | -5/Cetus | Spotted Cetus Guard 14365 | -5/Cetus | Destroyed Cetus Guard 14367 | -5/Cetus | Destroyed Cetus Guard 14367 | -5/Cetus | Allies destroyed Cetus Guard 14386 | -5/Cetus | Discovered new exit (range 15) 14388 | -5/Cetus | Met Revision 17 14505 | -5/Cetus | Entered Archives 14505 | -5/Archives | Accompanied by 20 allies 14515 | -5/Archives | Discovered new exit (range 15) 14521 | -5/Archives | Discovered new exit (range 14) 14601 | -5/Archives | Entered Hub_04(d) 14601 | -5/Hub_04(d) | Accompanied by 20 allies 14610 | -5/Hub_04(d) | Discovered new exit (range 16) 14700 | -5/Hub_04(d) | Discovered new exit (range 16) 14720 | -5/Hub_04(d) | Garrison activated, responded to threat 14860 | -5/Hub_04(d) | Network Hub disabled 14892 | -5/Hub_04(d) | Spotted Lightning 14892 | -5/Hub_04(d) | Destroyed Lightning 14894 | -5/Hub_04(d) | Spotted Lightning 14896 | -5/Hub_04(d) | Destroyed Lightning 14899 | -5/Hub_04(d) | Spotted Lightning 14901 | -5/Hub_04(d) | First assault squad dispatched 14904 | -5/Hub_04(d) | Allies destroyed Lightning 14907 | -5/Hub_04(d) | Spotted Lightning 14910 | -5/Hub_04(d) | Allies destroyed Lightning 14915 | -5/Hub_04(d) | Spotted Lightning 14916 | -5/Hub_04(d) | Spotted Lightning 14917 | -5/Hub_04(d) | Destroyed 8 combat bots 14919 | -5/Hub_04(d) | Destroyed Lightning 14923 | -5/Hub_04(d) | Destroyed Lightning 14926 | -5/Hub_04(d) | Found Prototype Processor 14952 | -5/Hub_04(d) | Identified Exp. Targeting Computer 14977 | -5/Hub_04(d) | ID Mask engaged 15011 | -5/Hub_04(d) | Spotted Lightning 15012 | -5/Hub_04(d) | Spotted B-75 Beast 15018 | -5/Hub_04(d) | ID Mask no longer valid 15020 | -5/Hub_04(d) | Network Hub disabled 15214 | -5/Hub_04(d) | Build established: Machinist-Sprinter 15223 | -5/Hub_04(d) | Spotted Lightning 15229 | -5/Hub_04(d) | Garrison activated, responded to threat 15231 | -5/Hub_04(d) | Destroyed Lightning 15247 | -5/Hub_04(d) | Destroyed B-75 Beast 15269 | -5/Hub_04(d) | Found Prototype Device 15269 | -5/Hub_04(d) | Identified Exp. EM Shield 15408 | -5/Hub_04(d) | Disrupted transfer network 15671 | -5/Hub_04(d) | Spotted Lightning 15671 | -5/Hub_04(d) | Spotted Lightning 15672 | -5/Hub_04(d) | Spotted Lightning 15673 | -5/Hub_04(d) | Discovered new exit (range 10) 15676 | -5/Hub_04(d) | Network Hub disabled 15676 | -5/Hub_04(d) | Network Hub disabled 15677 | -5/Hub_04(d) | System corruption reached 10% 15681 | -5/Hub_04(d) | Discovered new exit (range 15) 15696 | -5/Hub_04(d) | Core integrity fell below 50% 15705 | -5/Hub_04(d) | Destroyed Lightning 15715 | -5/Hub_04(d) | Entered Factory 15716 | -4/Factory | Core integrity fell below 50% 15717 | -4/Factory | Reached level 26 15726 | -4/Factory | Destroyed 7 combat bots 15829 | -4/Factory | Discovered new exit (range 12) 15850 | -4/Factory | Discovered new exit (range 15) 15924 | -4/Factory | Destroyed 11 combat bots 15950 | -4/Factory | Unchained authorized (GL-D0S) 15990 | -4/Factory | Exiles provided nearest exit location to -3/Research 16157 | -4/Factory | Destroyed 11 combat bots 16215 | -4/Factory | First assault squad dispatched 16339 | -4/Factory | Allied Derelicts emerged from ambush trap array 16373 | -4/Factory | Reached level 27 16376 | -4/Factory | Upgraded with Utility slot (x1) 16525 | -4/Factory | Discovered exit to Research (range 13) 16623 | -4/Factory | Spotted B-86 Titan 16634 | -4/Factory | Destroyed B-86 Titan 16846 | -4/Factory | High security lockdown imminent 16914 | -4/Factory | Found Prototype Special Weapon 16926 | -4/Factory | High security lockdown engaged 17044 | -4/Factory | Destroyed 11 combat bots 17052 | -4/Factory | Entered Upper Caves 17217 | -4/Upper Caves | Discovered new exit (range 14) 17279 | -4/Upper Caves | Identified Hammerchucker 17319 | -4/Upper Caves | Spotted B-86 Titan 17386 | -4/Upper Caves | Destroyed B-86 Titan 17393 | -4/Upper Caves | Learned location of 1 exit from Research 17401 | -4/Upper Caves | Attracted the attention of an 0b10 checkpoint 17476 | -4/Upper Caves | Destroyed 10 combat bots 17533 | -4/Upper Caves | Entered another Upper Caves area 17539 | -4/Upper Caves | Discovered exit to Research (range 9) 17567 | -4/Upper Caves | Learned Research emergency access door positions 17662 | -4/Upper Caves | Encountered a Warlord checkpoint 17667 | -4/Upper Caves | Attracted the attention of an 0b10 outpost 17683 | -4/Upper Caves | Reached level 28 17707 | -4/Upper Caves | Destroyed 7 combat bots 17716 | -4/Upper Caves | Discovered new exit (range 6) 17744 | -4/Upper Caves | Attracted the attention of an 0b10 checkpoint 17968 | -4/Upper Caves | Entered Warlord 17968 | -4/Warlord | Accompanied by 2 allies 17979 | -4/Warlord | Discovered new exit (range 15) 17984 | -4/Warlord | Opened side exit 17987 | -4/Warlord | Attacked by Warlord forces 18002 | -4/Warlord | Spotted 6P-O5B(g) 18004 | -4/Warlord | Destroyed 6P-O5B(g) 18111 | -4/Warlord | Spotted NF-1BM(g) 18126 | -4/Warlord | Destroyed Fake God Mode 18153 | -4/Warlord | Destroyed NF-1BM(g) 18191 | -4/Warlord | Warlord's base attacked by MAIN.C 18200 | -4/Warlord | Spotted S4-RAF(K) 18200 | -4/Warlord | Spotted FX-0ZC(K) 18258 | -4/Warlord | Destroyed FX-0ZC(K) 18262 | -4/Warlord | Found Prototype Processor 18264 | -4/Warlord | Identified Exp. Melee Analysis Suite 18276 | -4/Warlord | Destroyed S4-RAF(K) 18333 | -4/Warlord | Destroyed Warlord 18458 | -4/Warlord | Spotted ZR-366(g) 18473 | -4/Warlord | Destroyed ZR-366(g) 18541 | -4/Warlord | Warlord forces counterattacked 18573 | -4/Warlord | Destroyed 16 combat bots 18657 | -4/Warlord | Spotted WE-AXV(B) 18657 | -4/Warlord | Spotted HJ-XHU(B) 18714 | -4/Warlord | Spotted Striker 18719 | -4/Warlord | Destroyed Striker 18795 | -4/Warlord | Spotted Striker 18796 | -4/Warlord | Destroyed 11 combat bots 18798 | -4/Warlord | Spotted Executioner 18798 | -4/Warlord | Spotted Executioner 18800 | -4/Warlord | Entered Proximity Caves 18861 | -3/Proximity Caves | Attacked by a faux Warlord 18937 | -3/Proximity Caves | Discovered exit to Research (range 13) 19063 | -3/Proximity Caves | Attracted the attention of an 0b10 checkpoint 19301 | -3/Proximity Caves | Entered Research 19302 | -3/Research | Identified exit to Research 19303 | -3/Research | Reached level 29 19454 | -3/Research | Spotted B-86 Titan 19462 | -3/Research | Destroyed B-86 Titan 19487 | -3/Research | Found Prototype Processor 19487 | -3/Research | Identified Exp. Target Analyzer 19501 | -3/Research | Revision forces began assault on 0b10 19512 | -3/Research | Discovered exit to Research (range 13) 19562 | -3/Research | Discovered new exit (range 3) 19576 | -3/Research | Spotted B-86 Titan 19672 | -3/Research | Destroyed B-86 Titan 19705 | -3/Research | Found Prototype Device 19705 | -3/Research | Identified Exp. Shield Generator 19728 | -3/Research | Upgraded with Weapon slot (x1) 19745 | -3/Research | Met up with Revision 17++ 19775 | -3/Research | Entered Testing 19776 | -3/Testing | Reached level 30 19776 | -3/Testing | Maximum security lockdown engaged 19842 | -3/Testing | Found Prototype Device 19842 | -3/Testing | Identified Adv. EM Shield 19910 | -3/Testing | Rewired PD-TG1D4DC27I 20041 | -3/Testing | Discovered exit to Research (range 7) 20043 | -3/Testing | Entered Research 20045 | -2/Research | Reached level 31 20118 | -2/Research | Upgraded with Utility slot (x1) 20244 | -2/Research | Destroyed 13 combat bots 20262 | -2/Research | Unchained authorized (QV-33N) 20293 | -2/Research | First assault squad dispatched 20302 | -2/Research | Exiles provided nearest exit location to -1/Access 20310 | -2/Research | Reached level 32 20340 | -2/Research | Garrison activated, responded to threat 20391 | -2/Research | Destroyed 18 combat bots 20409 | -2/Research | High security lockdown imminent 20435 | -2/Research | Spotted B-90 Cyclops 20489 | -2/Research | High security lockdown engaged 20509 | -2/Research | Destroyed B-90 Cyclops 20733 | -2/Research | Discovered exit to Access (range 8) 20786 | -2/Research | Found Exp. Melee Analysis Suite 20787 | -2/Research | Found Exp. Melee Analysis Suite 21000 | -2/Research | Spotted Investigator 21001 | -2/Research | Discovered new exit (range 5) 21002 | -2/Research | Identified exit to Quarantine 21002 | -2/Research | Entered Quarantine 21003 | -2/Quarantine | Reached level 33 21003 | -2/Quarantine | Maximum security lockdown engaged 21030 | -2/Quarantine | Upgraded with Weapon slot (x1) 21031 | -2/Quarantine | Found Alien Slashing Weapon 21031 | -2/Quarantine | Identified Sigix Broadsword 21034 | -2/Quarantine | Destroyed 7 combat bots 21101 | -2/Quarantine | Destroyed 7 combat bots 21120 | -2/Quarantine | Build established: Hacker-Sprinter 21126 | -2/Quarantine | Core integrity fell below 50% 21140 | -2/Quarantine | Found Prototype Device 21140 | -2/Quarantine | Identified Exp. Transmission Jammer 21149 | -2/Quarantine | Found Alien Artifact 21149 | -2/Quarantine | Identified Hpw. Transdimensional Reconstructor 21149 | -2/Quarantine | Warped through subspace 21194 | -2/Quarantine | Found Alien Artifact 21195 | -2/Quarantine | Identified Subatomic Replicator 21195 | -2/Quarantine | Used Subatomic Replicator to replicate DM-GVY's Chainsaw 21229 | -2/Quarantine | Found Prototype Device 21229 | -2/Quarantine | Identified Exp. Phase Shifter 21302 | -2/Quarantine | Discovered exit to Access (range 15) 21348 | -2/Quarantine | Entered Access 21349 | -1/Access | Core integrity fell below 50% 21350 | -1/Access | Reached level 34 21377 | -1/Access | Identified exit to Command 21528 | -1/Access | Unchained authorized (QV-33N) 21533 | -1/Access | Spotted B-99 Colossus 21561 | -1/Access | Found Prototype Processor 21561 | -1/Access | Identified Spectral Analyzer 21565 | -1/Access | Found Prototype Processor 21565 | -1/Access | Identified Exp. Core Analyzer 21598 | -1/Access | First assault squad dispatched 21604 | -1/Access | Destroyed B-99 Colossus 21690 | -1/Access | Destroyed 13 combat bots 21707 | -1/Access | Spotted B-99 Colossus 21720 | -1/Access | Destroyed B-99 Colossus 21740 | -1/Access | High security lockdown imminent 21762 | -1/Access | Reached level 35 21820 | -1/Access | High security lockdown engaged 21881 | -1/Access | Entered Command 22062 | -1/Command | Reached level 36 22102 | -1/Command | Destroyed 9 combat bots 22108 | -1/Command | Found Prototype Device 22108 | -1/Command | Identified Exp. EM Disruption Field 22131 | -1/Command | First assault squad dispatched 22179 | -1/Command | Spotted B-99 Colossus 22183 | -1/Command | Spotted B-99 Colossus 22289 | -1/Command | Destroyed 9 combat bots 22304 | -1/Command | Destroyed B-99 Colossus 22320 | -1/Command | Destroyed B-99 Colossus 22416 | -1/Command | Disengaged cave seal 22512 | -1/Command | High security lockdown imminent 22592 | -1/Command | High security lockdown engaged 22838 | -1/Command | Spotted Investigator 22838 | -1/Command | Scanned by Researcher 22900 | -1/Command | Destroyed Investigator 22912 | -1/Command | Spotted Striker 22940 | -1/Command | Spotted Striker 22941 | -1/Command | Core integrity fell below 20% 22943 | -1/Command | Destroyed Striker 22946 | -1/Command | Destroyed Striker 22968 | -1/Command | Spotted Executioner 22968 | -1/Command | Spotted Executioner 22968 | -1/Command | Spotted Executioner 22984 | -1/Command | Destroyed Executioner 22985 | -1/Command | Spotted Executioner 22992 | -1/Command | Destroyed Executioner 22997 | -1/Command | Spotted Alpha 7 23010 | -1/Command | Spotted Executioner 23013 | -1/Command | Destroyed 11 combat bots 23027 | -1/Command | Destroyed Executioner 23055 | -1/Command | Destroyed Executioner 23072 | -1/Command | Reached level 37 23087 | -1/Command | Found Exp. Core Analyzer 23095 | -1/Command | Destroyed 11 combat bots 23098 | -1/Command | Phase Generator disabled 23098 | -1/Command | Destroyed Executioner 23150 | -1/Command | Destroyed 10 combat bots 23175 | -1/Command | Destroyed Alpha 7 23185 | -1/Command | Spotted Striker 23189 | -1/Command | Destroyed Striker 23248 | -1/Command | Spotted Striker 23248 | -1/Command | Spotted Executioner 23264 | -1/Command | Destroyed by Striker with Plasma Lance Last Messages --------------- payload. 23248_ Striker unfolds itself. 23248_ Executioner unfolds itself. 23248_ P-80 Master unfolds itself. 23248_ Slug penetrates Wall. 23248_ Penetrated by Slug. 23249_ BDS0PJLPLSO